Workbook

Sheet January
B2: Клиенты Участников торгов фондового рынка Московской Биржи
B3: 2017-01-31
B6: Динамика количества клиентов за | C6: =B3 -> 2017-01-31
B10: Количество зарегистрированных клиентов в Системе торгов (по состоянию на последний день месяца): | H10: Таблица 1
B11: Группы клиентов | E11: =EDATE(B3,-1) -> 2016-12-31 | F11: =B3 -> 2017-01-31 | G11: Изменение (ед.) | H11: Изменение (%)
B12: Физические лица | E12: 1499778 | F12: 1605440 | G12: =F12-E12 -> 105662 | H12: =F12/E12-1 -> 0.07045176019
B13: Юридические лица | E13: 30427 | F13: 30224 | G13: =F13-E13 -> -203 | H13: -0.006671706051
B14: Иностранные лица | E14: 13937 | F14: 14297 | G14: 360 | H14: 0.02583052307
B15: Иностранные физические лица | E15: 6346 | F15: 6720 | G15: 374 | H15: 0.05893476205
B16: Иностранные юридические лица | E16: 7591 | F16: 7577 | G16: -14 | H16: -0.00184428929
B17: Клиенты, передавшие свои средства в ДУ | E17: 31549 | F17: 31425 | G17: -124 | H17: -0.00393039399
B18: Всего | E18: 1575691 | F18: 1681386 | G18: 105695 | H18: 0.06707850714
B21: Количество уникальных клиентов в Системе торгов (по состоянию на последний день месяца): | H21: Таблица 2
B22: Группы клиентов | E22: =EDATE(B3,-1) -> 2016-12-31 | F22: =F11 -> 2017-01-31 | G22: Изменение (ед.) | H22: Изменение (%)
B23: Физические лица | E23: 1102966 | F23: 1122053 | G23: =F23-E23 -> 19087 | H23: =F23/E23-1 -> 0.01730515719
B24: Юридические лица | E24: 18622 | F24: 18499 | G24: =F24-E24 -> -123 | H24: =F24/E24-1 -> -0.006605090753
B25: Иностранные лица | E25: 9215 | F25: 9371 | G25: 156 | H25: 0.01692892024
B26: Иностранные физические лица | E26: 5793 | F26: 5969 | G26: 176 | H26: 0.03038149491
B27: Иностранные юридические лица | E27: 3422 | F27: 3402 | G27: -20 | H27: -0.005844535359
B28: Клиенты, передавшие свои средства в ДУ | E28: 10694 | F28: 10991 | G28: 297 | H28: 0.02777258276
B29: Всего | E29: 1141497 | F29: 1160914 | G29: 19417 | H29: 0.01701011917
B32: Количество активных клиентов в Системе торгов (совершивших в течение месяца хотя бы одну сделку): | H32: Таблица 3
B33: Группы клиентов | E33: =EDATE(B3,-1) -> 2016-12-31 | F33: =F11 -> 2017-01-31 | G33: Изменение (ед.) | H33: Изменение (%)
B34: Физические лица | E34: 95743 | F34: 86958 | G34: =F34-E34 -> -8785 | H34: =F34/E34-1 -> -0.09175605527
B35: Юридические лица | E35: 1182 | F35: 916 | G35: -266 | H35: -0.2250423012
B36: Иностранные лица | E36: 735 | F36: 667 | G36: -68 | H36: -0.0925170068
B37: Иностранные физические лица | E37: 402 | F37: 415 | G37: 13 | H37: 0.03233830846
B38: Иностранные юридические лица | E38: 333 | F38: 252 | G38: -81 | H38: -0.2432432432
B39: Клиенты, передавшие свои средства в ДУ | E39: 3524 | F39: 2837 | G39: -687 | H39: -0.1949489217
B40: Всего | E40: 101184 | F40: 91378 | G40: -9806 | H40: -0.09691255534
B44: Изменение количества уникальных клиентов - ретроспективные данные
B48: Количество уникальных клиентов в Системе торгов (по состоянию на последний день месяца) (ежегодная статистика): | H48: Таблица 1
B49: Группы клиентов | E49: 2012-12-31 | F49: 2013-12-31 | G49: 2014-12-31 | H49: 2015-12-31 | I49: 2016-12-31
B50: Физические лица | E50: 805549 | F50: 881844 | G50: 944559 | H50: 1006751 | I50: 1102966
B51: Юридические лица | E51: 17821 | F51: 19539 | G51: 20178 | H51: 20753 | I51: 18622
B52: Иностранные лица | E52: 5876 | F52: 6957 | G52: 7486 | H52: 8729 | I52: 9215
B53: Клиенты, передавшие свои средства в ДУ | E53: 5261 | F53: 5182 | G53: 5142 | H53: 3836 | I53: 10694
B54: Всего | E54: 834507 | F54: 913522 | G54: 977365 | H54: 1040069 | I54: 1141497
B82: Количество уникальных клиентов в Системе торгов (по состоянию на последний день месяца) (за последние 6 месяцев): | H82: Таблица 2
B83: Группы клиентов | C83: =EDATE(D83,-1) -> 2016-08-30 | D83: =EDATE(E83,-1) -> 2016-09-30 | E83: =EDATE(F83,-1) -> 2016-10-30 | F83: =EDATE(G83,-1) -> 2016-11-30 | G83: =EDATE(H83,-1) -> 2016-12-31 | H83: =EDATE(E11,1) -> 2017-01-31
B84: Физические лица | C84: 1040684 | D84: 1049230 | E84: 1061843 | F84: 1080706 | G84: 1102966 | H84: 1122053
B85: Юридические лица | C85: 19083 | D85: 19110 | E85: 18990 | F85: 19037 | G85: 18622 | H85: 18499
B86: Иностранные лица | C86: 8850 | D86: 8966 | E86: 9026 | F86: 9070 | G86: 9215 | H86: 9371
B87: Клиенты, передавшие свои средства в ДУ | C87: 2017 | D87: 2602 | E87: 7021 | F87: 10116 | G87: 10694 | H87: 10991
B88: Всего | C88: 1070634 | D88: 1079908 | E88: 1096880 | F88: 1118929 | G88: 1141497 | H88: 1160914
B124: Дополнительные показатели за | C124: =B3 -> 2017-01-31
H127: Таблица 1
B128: Участники торгов | G128: Абсолютные показатели
B129: Количество Участников торгов, имеющих активных клиентов | G129: 330
B133: Списки ведущих операторов фондового рынка - клиенты Участников торгов за | F133: =C6 -> 2017-01-31
B136: Ведущие операторы рынка – число зарегистрированных клиентов | H136: Таблица 1
B137: (по общему количеству уникальных клиентов всех типов, зарегистрированных в системе торгов биржи, в том числе в течение месяца)
B138: Наименование Участника торгов | G138: Количество клиентов
B139: ВТБ 24 (ПАО) | C139: ВТБ 24 (ПАО) | D139: ВТБ 24 (ПАО) | E139: ВТБ 24 (ПАО) | F139: ВТБ 24 (ПАО) | G139: 251157 | H139: 251157
B140: Сбербанк | C140: Сбербанк | D140: Сбербанк | E140: Сбербанк | F140: Сбербанк | G140: 198417 | H140: 198417
B141: ФГ БКС | C141: ФГ БКС | D141: ФГ БКС | E141: ФГ БКС | F141: ФГ БКС | G141: 189330 | H141: 189330
B142: АО "ФИНАМ" | C142: АО "ФИНАМ" | D142: АО "ФИНАМ" | E142: АО "ФИНАМ" | F142: АО "ФИНАМ" | G142: 162053 | H142: 162053
B143: ФГ "ОТКРЫТИЕ" | C143: ФГ "ОТКРЫТИЕ" | D143: ФГ "ОТКРЫТИЕ" | E143: ФГ "ОТКРЫТИЕ" | F143: ФГ "ОТКРЫТИЕ" | G143: 96363 | H143: 96363
B144: АО "АЛЬФА-БАНК" | C144: АО "АЛЬФА-БАНК" | D144: АО "АЛЬФА-БАНК" | E144: АО "АЛЬФА-БАНК" | F144: АО "АЛЬФА-БАНК" | G144: 61550 | H144: 61550
B145: ООО "АТОН" | C145: ООО "АТОН" | D145: ООО "АТОН" | E145: ООО "АТОН" | F145: ООО "АТОН" | G145: 49924 | H145: 49924
B146: АЛОР БРОКЕР | C146: АЛОР БРОКЕР | D146: АЛОР БРОКЕР | E146: АЛОР БРОКЕР | F146: АЛОР БРОКЕР | G146: 33284 | H146: 33284
B147: КИТ Финанс (АО) | C147: КИТ Финанс (АО) | D147: КИТ Финанс (АО) | E147: КИТ Финанс (АО) | F147: КИТ Финанс (АО) | G147: 21970 | H147: 21970
B148: ООО "Инвестиционная палата" | C148: ООО "Инвестиционная палата" | D148: ООО "Инвестиционная палата" | E148: ООО "Инвестиционная палата" | F148: ООО "Инвестиционная палата" | G148: 19859 | H148: 19859
B151: Ведущие операторы рынка – число активных клиентов | H151: Таблица 2
B152: (по количеству уникальных клиентов, совершивших хотя бы одну сделку за месяц)
B153: Наименование Участника торгов | G153: Количество клиентов
B154: АО "ФИНАМ" | C154: АО "ФИНАМ" | D154: АО "ФИНАМ" | E154: АО "ФИНАМ" | F154: АО "ФИНАМ" | G154: 16290 | H154: 16290
B155: Сбербанк | C155: Сбербанк | D155: Сбербанк | E155: Сбербанк | F155: Сбербанк | G155: 14564 | H155: 14564
B156: ФГ БКС | C156: ФГ БКС | D156: ФГ БКС | E156: ФГ БКС | F156: ФГ БКС | G156: 14113 | H156: 14113
B157: ВТБ 24 (ПАО) | C157: ВТБ 24 (ПАО) | D157: ВТБ 24 (ПАО) | E157: ВТБ 24 (ПАО) | F157: ВТБ 24 (ПАО) | G157: 11564 | H157: 11564
B158: ФГ "ОТКРЫТИЕ" | C158: ФГ "ОТКРЫТИЕ" | D158: ФГ "ОТКРЫТИЕ" | E158: ФГ "ОТКРЫТИЕ" | F158: ФГ "ОТКРЫТИЕ" | G158: 11321 | H158: 11321
B159: АО "АЛЬФА-БАНК" | C159: АО "АЛЬФА-БАНК" | D159: АО "АЛЬФА-БАНК" | E159: АО "АЛЬФА-БАНК" | F159: АО "АЛЬФА-БАНК" | G159: 4047 | H159: 4047
B160: ООО "АТОН" | C160: ООО "АТОН" | D160: ООО "АТОН" | E160: ООО "АТОН" | F160: ООО "АТОН" | G160: 3001 | H160: 3001
B161: Банк ГПБ (АО) | C161: Банк ГПБ (АО) | D161: Банк ГПБ (АО) | E161: Банк ГПБ (АО) | F161: Банк ГПБ (АО) | G161: 2621 | H161: 2621
B162: ПАО "Промсвязьбанк" | C162: ПАО "Промсвязьбанк" | D162: ПАО "Промсвязьбанк" | E162: ПАО "Промсвязьбанк" | F162: ПАО "Промсвязьбанк" | G162: 2376 | H162: 2376
B163: ООО УК "Альфа-Капитал" | C163: ООО УК "Альфа-Капитал" | D163: ООО УК "Альфа-Капитал" | E163: ООО УК "Альфа-Капитал" | F163: ООО УК "Альфа-Капитал" | G163: 1777 | H163: 1777
B166: Ведущие операторы рынка – объем клиентских операций | H166: Таблица 3
B167: (по стоимостному объему сделок, заключенных в интересах клиентов за месяц)
B168: Наименование Участника торгов | G168: Торговый оборот, руб.
B169: ФГ БКС | C169: ФГ БКС | D169: ФГ БКС | E169: ФГ БКС | F169: ФГ БКС | G169: 1.398529747e+12 | H169: 1.398529747e+12
B170: ФГ "ОТКРЫТИЕ" | C170: ФГ "ОТКРЫТИЕ" | D170: ФГ "ОТКРЫТИЕ" | E170: ФГ "ОТКРЫТИЕ" | F170: ФГ "ОТКРЫТИЕ" | G170: 1.318191208e+12 | H170: 1.318191208e+12
B171: ООО "Ренессанс Брокер" | C171: ООО "Ренессанс Брокер" | D171: ООО "Ренессанс Брокер" | E171: ООО "Ренессанс Брокер" | F171: ООО "Ренессанс Брокер" | G171: 8.284856646e+11 | H171: 8.284856646e+11
B172: ПАО "Совкомбанк" | C172: ПАО "Совкомбанк" | D172: ПАО "Совкомбанк" | E172: ПАО "Совкомбанк" | F172: ПАО "Совкомбанк" | G172: 5.996429489e+11 | H172: 5.996429489e+11
B173: Сбербанк | C173: Сбербанк | D173: Сбербанк | E173: Сбербанк | F173: Сбербанк | G173: 5.108309027e+11 | H173: 5.108309027e+11
B174: АО "ФИНАМ" | C174: АО "ФИНАМ" | D174: АО "ФИНАМ" | E174: АО "ФИНАМ" | F174: АО "ФИНАМ" | G174: 4.971857635e+11 | H174: 4.971857635e+11
B175: ООО "БК РЕГИОН" | C175: ООО "БК РЕГИОН" | D175: ООО "БК РЕГИОН" | E175: ООО "БК РЕГИОН" | F175: ООО "БК РЕГИОН" | G175: 4.687125049e+11 | H175: 4.687125049e+11
B176: ООО "ИФК "МЕТРОПОЛЬ" | C176: ООО "ИФК "МЕТРОПОЛЬ" | D176: ООО "ИФК "МЕТРОПОЛЬ" | E176: ООО "ИФК "МЕТРОПОЛЬ" | F176: ООО "ИФК "МЕТРОПОЛЬ" | G176: 4.199842763e+11 | H176: 4.199842763e+11
B177: ПАО "Промсвязьбанк" | C177: ПАО "Промсвязьбанк" | D177: ПАО "Промсвязьбанк" | E177: ПАО "Промсвязьбанк" | F177: ПАО "Промсвязьбанк" | G177: 3.489720998e+11 | H177: 3.489720998e+11
B178: ООО "ИК ВЕЛЕС Капитал" | C178: ООО "ИК ВЕЛЕС Капитал" | D178: ООО "ИК ВЕЛЕС Капитал" | E178: ООО "ИК ВЕЛЕС Капитал" | F178: ООО "ИК ВЕЛЕС Капитал" | G178: 3.420762159e+11 | H178: 3.420762159e+11

Sheet February
B2: Клиенты Участников торгов фондового рынка Московской Биржи
B3: 2017-02-28
B6: Динамика количества клиентов за | C6: =B3 -> 2017-02-28
B10: Количество зарегистрированных клиентов в Системе торгов (по состоянию на последний день месяца): | H10: Таблица 1
B11: Группы клиентов | E11: =EDATE(B3,-1) -> 2017-01-28 | F11: =B3 -> 2017-02-28 | G11: Изменение (ед.) | H11: Изменение (%)
B12: Физические лица | E12: =January!F12 -> 1605440 | F12: 1541184 | G12: =F12-E12 -> -64256 | H12: =F12/E12-1 -> -0.04002391868
B13: Юридические лица | E13: =January!F13 -> 30224 | F13: 30191 | G13: =F13-E13 -> -33 | H13: -0.001091847538
B14: Иностранные лица | E14: =January!F14 -> 14297 | F14: 14174 | G14: -123 | H14: -0.008603203469
B15: Иностранные физические лица | E15: =January!F15 -> 6720 | F15: 6603 | G15: -117 | H15: -0.01741071429
B16: Иностранные юридические лица | E16: =January!F16 -> 7577 | F16: 7571 | G16: -6 | H16: -0.0007918701333
B17: Клиенты, передавшие свои средства в ДУ | E17: =January!F17 -> 31425 | F17: 34712 | G17: 3287 | H17: 0.1045982498
B18: Всего | E18: =January!F18 -> 1681386 | F18: 1620261 | G18: -61125 | H18: -0.03635393657
B21: Количество уникальных клиентов в Системе торгов (по состоянию на последний день месяца): | H21: Таблица 2
B22: Группы клиентов | E22: =EDATE(B3,-1) -> 2017-01-28 | F22: =F11 -> 2017-02-28 | G22: Изменение (ед.) | H22: Изменение (%)
B23: Физические лица | E23: =January!F23 -> 1122053 | F23: 1125369 | G23: =F23-E23 -> 3316 | H23: =F23/E23-1 -> 0.002955297121
B24: Юридические лица | E24: =January!F24 -> 18499 | F24: 18472 | G24: =F24-E24 -> -27 | H24: =F24/E24-1 -> -0.001459538353
B25: Иностранные лица | E25: =January!F25 -> 9371 | F25: 9319 | G25: -52 | H25: -0.005549034255
B26: Иностранные физические лица | E26: =January!F26 -> 5969 | F26: 5987 | G26: 18 | H26: 0.003015580499
B27: Иностранные юридические лица | E27: =January!F27 -> 3402 | F27: 3332 | G27: -70 | H27: -0.02057613169
B28: Клиенты, передавшие свои средства в ДУ | E28: =January!F28 -> 10991 | F28: 13509 | G28: 2518 | H28: 0.2290965335
B29: Всего | E29: =January!F29 -> 1160914 | F29: 1166669 | G29: 5755 | H29: 0.004957300885
B32: Количество активных клиентов в Системе торгов (совершивших в течение месяца хотя бы одну сделку): | H32: Таблица 3
B33: Группы клиентов | E33: =EDATE(B3,-1) -> 2017-01-28 | F33: =F11 -> 2017-02-28 | G33: Изменение (ед.) | H33: Изменение (%)
B34: Физические лица | E34: =January!F34 -> 86958 | F34: 89612 | G34: =F34-E34 -> 2654 | H34: =F34/E34-1 -> 0.03052048115
B35: Юридические лица | E35: =January!F35 -> 916 | F35: 989 | G35: 73 | H35: 0.07969432314
B36: Иностранные лица | E36: =January!F36 -> 667 | F36: 702 | G36: 35 | H36: 0.05247376312
B37: Иностранные физические лица | E37: =January!F37 -> 415 | F37: 441 | G37: 26 | H37: 0.06265060241
B38: Иностранные юридические лица | E38: =January!F38 -> 252 | F38: 261 | G38: 9 | H38: 0.03571428571
B39: Клиенты, передавшие свои средства в ДУ | E39: =January!F39 -> 2837 | F39: 4206 | G39: 1369 | H39: 0.4825519915
B40: Всего | E40: =January!F40 -> 91378 | F40: 95509 | G40: 4131 | H40: 0.04520781807
B44: Изменение количества уникальных клиентов - ретроспективные данные
B48: Количество уникальных клиентов в Системе торгов (по состоянию на последний день месяца) (ежегодная статистика): | H48: Таблица 1
B49: Группы клиентов | E49: 2012-12-31 | F49: 2013-12-31 | G49: 2014-12-31 | H49: 2015-12-31 | I49: 2016-12-31
B50: Физические лица | E50: 805549 | F50: 881844 | G50: 944559 | H50: 1006751 | I50: 1102966
B51: Юридические лица | E51: 17821 | F51: 19539 | G51: 20178 | H51: 20753 | I51: 18622
B52: Иностранные лица | E52: 5876 | F52: 6957 | G52: 7486 | H52: 8729 | I52: 9215
B53: Клиенты, передавшие свои средства в ДУ | E53: 5261 | F53: 5182 | G53: 5142 | H53: 3836 | I53: 10694
B54: Всего | E54: 834507 | F54: 913522 | G54: 977365 | H54: 1040069 | I54: 1141497
B82: Количество уникальных клиентов в Системе торгов (по состоянию на последний день месяца) (за последние 6 месяцев): | H82: Таблица 2
B83: Группы клиентов | C83: =EDATE(D83,-1) -> 2016-09-28 | D83: =EDATE(E83,-1) -> 2016-10-28 | E83: =EDATE(F83,-1) -> 2016-11-28 | F83: =EDATE(G83,-1) -> 2016-12-28 | G83: =EDATE(H83,-1) -> 2017-01-28 | H83: =EDATE(E11,1) -> 2017-02-28
B84: Физические лица | C84: 1049230 | D84: 1061843 | E84: 1080706 | F84: 1102966 | G84: 1122053 | H84: 1125369
B85: Юридические лица | C85: 19110 | D85: 18990 | E85: 19037 | F85: 18622 | G85: 18499 | H85: 18472
B86: Иностранные лица | C86: 8966 | D86: 9026 | E86: 9070 | F86: 9215 | G86: 9371 | H86: 9319
B87: Клиенты, передавшие свои средства в ДУ | C87: 2602 | D87: 7021 | E87: 10116 | F87: 10694 | G87: 10991 | H87: 13509
B88: Всего | C88: 1079908 | D88: 1096880 | E88: 1118929 | F88: 1141497 | G88: 1160914 | H88: 1166669
B124: Дополнительные показатели за | C124: =B3 -> 2017-02-28
H127: Таблица 1
B128: Участники торгов | G128: Абсолютные показатели
B129: Количество Участников торгов, имеющих активных клиентов | G129: 331
B133: Списки ведущих операторов фондового рынка - клиенты Участников торгов за | F133: =C6 -> 2017-02-28
B136: Ведущие операторы рынка – число зарегистрированных клиентов | H136: Таблица 1
B137: (по общему количеству уникальных клиентов всех типов, зарегистрированных в системе торгов биржи, в том числе в течение месяца)
B138: Наименование Участника торгов | G138: Количество клиентов
B139: ВТБ 24 (ПАО) | C139: ВТБ 24 (ПАО) | D139: ВТБ 24 (ПАО) | E139: ВТБ 24 (ПАО) | F139: ВТБ 24 (ПАО) | G139: 252818 | H139: 252818
B140: Сбербанк | C140: Сбербанк | D140: Сбербанк | E140: Сбербанк | F140: Сбербанк | G140: 200378 | H140: 200378
B141: ФГ БКС | C141: ФГ БКС | D141: ФГ БКС | E141: ФГ БКС | F141: ФГ БКС | G141: 194418 | H141: 194418
B142: АО "ФИНАМ" | C142: АО "ФИНАМ" | D142: АО "ФИНАМ" | E142: АО "ФИНАМ" | F142: АО "ФИНАМ" | G142: 163695 | H142: 163695
B143: ФГ "ОТКРЫТИЕ" | C143: ФГ "ОТКРЫТИЕ" | D143: ФГ "ОТКРЫТИЕ" | E143: ФГ "ОТКРЫТИЕ" | F143: ФГ "ОТКРЫТИЕ" | G143: 98310 | H143: 98310
B144: АО "АЛЬФА-БАНК" | C144: АО "АЛЬФА-БАНК" | D144: АО "АЛЬФА-БАНК" | E144: АО "АЛЬФА-БАНК" | F144: АО "АЛЬФА-БАНК" | G144: 61493 | H144: 61493
B145: ООО "АТОН" | C145: ООО "АТОН" | D145: ООО "АТОН" | E145: ООО "АТОН" | F145: ООО "АТОН" | G145: 50137 | H145: 50137
B146: АЛОР БРОКЕР | C146: АЛОР БРОКЕР | D146: АЛОР БРОКЕР | E146: АЛОР БРОКЕР | F146: АЛОР БРОКЕР | G146: 33360 | H146: 33360
B147: КИТ Финанс (АО) | C147: КИТ Финанс (АО) | D147: КИТ Финанс (АО) | E147: КИТ Финанс (АО) | F147: КИТ Финанс (АО) | G147: 22007 | H147: 22007
B148: ООО "Инвестиционная палата" | C148: ООО "Инвестиционная палата" | D148: ООО "Инвестиционная палата" | E148: ООО "Инвестиционная палата" | F148: ООО "Инвестиционная палата" | G148: 19859 | H148: 19859
B151: Ведущие операторы рынка – число активных клиентов | H151: Таблица 2
B152: (по количеству уникальных клиентов, совершивших хотя бы одну сделку за месяц)
B153: Наименование Участника торгов | G153: Количество клиентов
B154: АО "ФИНАМ" | C154: АО "ФИНАМ" | D154: АО "ФИНАМ" | E154: АО "ФИНАМ" | F154: АО "ФИНАМ" | G154: 16914 | H154: 16914
B155: Сбербанк | C155: Сбербанк | D155: Сбербанк | E155: Сбербанк | F155: Сбербанк | G155: 14365 | H155: 14365
B156: ФГ БКС | C156: ФГ БКС | D156: ФГ БКС | E156: ФГ БКС | F156: ФГ БКС | G156: 14345 | H156: 14345
B157: ВТБ 24 (ПАО) | C157: ВТБ 24 (ПАО) | D157: ВТБ 24 (ПАО) | E157: ВТБ 24 (ПАО) | F157: ВТБ 24 (ПАО) | G157: 11668 | H157: 11668
B158: ФГ "ОТКРЫТИЕ" | C158: ФГ "ОТКРЫТИЕ" | D158: ФГ "ОТКРЫТИЕ" | E158: ФГ "ОТКРЫТИЕ" | F158: ФГ "ОТКРЫТИЕ" | G158: 11645 | H158: 11645
B159: АО "АЛЬФА-БАНК" | C159: АО "АЛЬФА-БАНК" | D159: АО "АЛЬФА-БАНК" | E159: АО "АЛЬФА-БАНК" | F159: АО "АЛЬФА-БАНК" | G159: 4320 | H159: 4320
B160: ООО УК "Альфа-Капитал" | C160: ООО УК "Альфа-Капитал" | D160: ООО УК "Альфа-Капитал" | E160: ООО УК "Альфа-Капитал" | F160: ООО УК "Альфа-Капитал" | G160: 3781 | H160: 3781
B161: ООО "АТОН" | C161: ООО "АТОН" | D161: ООО "АТОН" | E161: ООО "АТОН" | F161: ООО "АТОН" | G161: 2913 | H161: 2913
B162: Банк ГПБ (АО) | C162: Банк ГПБ (АО) | D162: Банк ГПБ (АО) | E162: Банк ГПБ (АО) | F162: Банк ГПБ (АО) | G162: 2562 | H162: 2562
B163: ПАО "Промсвязьбанк" | C163: ПАО "Промсвязьбанк" | D163: ПАО "Промсвязьбанк" | E163: ПАО "Промсвязьбанк" | F163: ПАО "Промсвязьбанк" | G163: 2516 | H163: 2516
B166: Ведущие операторы рынка – объем клиентских операций | H166: Таблица 3
B167: (по стоимостному объему сделок, заключенных в интересах клиентов за месяц)
B168: Наименование Участника торгов | G168: Торговый оборот, руб.
B169: ФГ "ОТКРЫТИЕ" | C169: ФГ "ОТКРЫТИЕ" | D169: ФГ "ОТКРЫТИЕ" | E169: ФГ "ОТКРЫТИЕ" | F169: ФГ "ОТКРЫТИЕ" | G169: 1.592479239e+12 | H169: 1.592479239e+12
B170: ФГ БКС | C170: ФГ БКС | D170: ФГ БКС | E170: ФГ БКС | F170: ФГ БКС | G170: 1.475524965e+12 | H170: 1.475524965e+12
B171: ООО "Ренессанс Брокер" | C171: ООО "Ренессанс Брокер" | D171: ООО "Ренессанс Брокер" | E171: ООО "Ренессанс Брокер" | F171: ООО "Ренессанс Брокер" | G171: 8.754397126e+11 | H171: 8.754397126e+11
B172: ООО "БК РЕГИОН" | C172: ООО "БК РЕГИОН" | D172: ООО "БК РЕГИОН" | E172: ООО "БК РЕГИОН" | F172: ООО "БК РЕГИОН" | G172: 7.526644629e+11 | H172: 7.526644629e+11
B173: ПАО "Совкомбанк" | C173: ПАО "Совкомбанк" | D173: ПАО "Совкомбанк" | E173: ПАО "Совкомбанк" | F173: ПАО "Совкомбанк" | G173: 5.51332548e+11 | H173: 5.51332548e+11
B174: АО "ФИНАМ" | C174: АО "ФИНАМ" | D174: АО "ФИНАМ" | E174: АО "ФИНАМ" | F174: АО "ФИНАМ" | G174: 5.074148449e+11 | H174: 5.074148449e+11
B175: ООО "ИФК "МЕТРОПОЛЬ" | C175: ООО "ИФК "МЕТРОПОЛЬ" | D175: ООО "ИФК "МЕТРОПОЛЬ" | E175: ООО "ИФК "МЕТРОПОЛЬ" | F175: ООО "ИФК "МЕТРОПОЛЬ" | G175: 4.481688844e+11 | H175: 4.481688844e+11
B176: ПАО "Промсвязьбанк" | C176: ПАО "Промсвязьбанк" | D176: ПАО "Промсвязьбанк" | E176: ПАО "Промсвязьбанк" | F176: ПАО "Промсвязьбанк" | G176: 4.421005393e+11 | H176: 4.421005393e+11
B177: ООО "УНИВЕР Капитал" | C177: ООО "УНИВЕР Капитал" | D177: ООО "УНИВЕР Капитал" | E177: ООО "УНИВЕР Капитал" | F177: ООО "УНИВЕР Капитал" | G177: 4.408096487e+11 | H177: 4.408096487e+11
B178: Сбербанк | C178: Сбербанк | D178: Сбербанк | E178: Сбербанк | F178: Сбербанк | G178: 3.714640042e+11 | H178: 3.714640042e+11

Sheet March
B2: Клиенты Участников торгов фондового рынка Московской Биржи
B3: 2017-03-31
B6: Динамика количества клиентов за | C6: =B3 -> 2017-03-31
B10: Количество зарегистрированных клиентов в Системе торгов (по состоянию на последний день месяца): | H10: Таблица 1
B11: Группы клиентов | E11: =EDATE(B3,-1) -> 2017-02-28 | F11: =B3 -> 2017-03-31 | G11: Изменение (ед.) | H11: Изменение (%)
B12: Физические лица | E12: 1541184 | F12: 1692079 | G12: =F12-E12 -> 150895 | H12: =F12/E12-1 -> 0.09790849113
B13: Юридические лица | E13: 30191 | F13: 30318 | G13: =F13-E13 -> 127 | H13: 0.004206551621
B14: Иностранные лица | E14: 14174 | F14: 14943 | G14: 769 | H14: 0.05425426838
B15: Иностранные физические лица | E15: 6603 | F15: 7393 | G15: 790 | H15: 0.1196425867
B16: Иностранные юридические лица | E16: 7571 | F16: 7550 | G16: -21 | H16: -0.00277374191
B17: Клиенты, передавшие свои средства в ДУ | E17: 34712 | F17: 35406 | G17: 694 | H17: 0.01999308596
B18: Всего | E18: 1620261 | F18: 1772746 | G18: 152485 | H18: 0.09411138082
B21: Количество уникальных клиентов в Системе торгов (по состоянию на последний день месяца): | H21: Таблица 2
B22: Группы клиентов | E22: =EDATE(B3,-1) -> 2017-02-28 | F22: =F11 -> 2017-03-31 | G22: Изменение (ед.) | H22: Изменение (%)
B23: Физические лица | E23: 1125369 | F23: 1143968 | G23: =F23-E23 -> 18599 | H23: =F23/E23-1 -> 0.01652702358
B24: Юридические лица | E24: 18472 | F24: 18496 | G24: =F24-E24 -> 24 | H24: =F24/E24-1 -> 0.001299263751
B25: Иностранные лица | E25: 9319 | F25: 9908 | G25: 589 | H25: 0.06320420646
B26: Иностранные физические лица | E26: 5987 | F26: 6602 | G26: 615 | H26: 0.1027225656
B27: Иностранные юридические лица | E27: 3332 | F27: 3306 | G27: -26 | H27: -0.007803121248
B28: Клиенты, передавшие свои средства в ДУ | E28: 13509 | F28: 14098 | G28: 589 | H28: 0.04360056259
B29: Всего | E29: 1166669 | F29: 1186470 | G29: 19801 | H29: 0.01697225177
B32: Количество активных клиентов в Системе торгов (совершивших в течение месяца хотя бы одну сделку): | H32: Таблица 3
B33: Группы клиентов | E33: =EDATE(B3,-1) -> 2017-02-28 | F33: =F11 -> 2017-03-31 | G33: Изменение (ед.) | H33: Изменение (%)
B34: Физические лица | E34: 89612 | F34: 89139 | G34: =F34-E34 -> -473 | H34: =F34/E34-1 -> -0.00527831094
B35: Юридические лица | E35: 989 | F35: 1054 | G35: 65 | H35: 0.06572295248
B36: Иностранные лица | E36: 702 | F36: 751 | G36: 49 | H36: 0.0698005698
B37: Иностранные физические лица | E37: 441 | F37: 467 | G37: 26 | H37: 0.0589569161
B38: Иностранные юридические лица | E38: 261 | F38: 284 | G38: 23 | H38: 0.08812260536
B39: Клиенты, передавшие свои средства в ДУ | E39: 4206 | F39: 4968 | G39: 762 | H39: 0.1811697575
B40: Всего | E40: 95509 | F40: 95912 | G40: 403 | H40: 0.004219497639
B44: Изменение количества уникальных клиентов - ретроспективные данные
B48: Количество уникальных клиентов в Системе торгов (по состоянию на последний день месяца) (ежегодная статистика): | H48: Таблица 1
B49: Группы клиентов | E49: 2012-12-31 | F49: 2013-12-31 | G49: 2014-12-31 | H49: 2015-12-31 | I49: 2016-12-31
B50: Физические лица | E50: 805549 | F50: 881844 | G50: 944559 | H50: 1006751 | I50: 1102966
B51: Юридические лица | E51: 17821 | F51: 19539 | G51: 20178 | H51: 20753 | I51: 18622
B52: Иностранные лица | E52: 5876 | F52: 6957 | G52: 7486 | H52: 8729 | I52: 9215
B53: Клиенты, передавшие свои средства в ДУ | E53: 5261 | F53: 5182 | G53: 5142 | H53: 3836 | I53: 10694
B54: Всего | E54: 834507 | F54: 913522 | G54: 977365 | H54: 1040069 | I54: 1141497
B82: Количество уникальных клиентов в Системе торгов (по состоянию на последний день месяца) (за последние 6 месяцев): | H82: Таблица 2
B83: Группы клиентов | C83: =EDATE(D83,-1) -> 2016-10-28 | D83: =EDATE(E83,-1) -> 2016-11-28 | E83: =EDATE(F83,-1) -> 2016-12-28 | F83: =EDATE(G83,-1) -> 2017-01-28 | G83: =EDATE(H83,-1) -> 2017-02-28 | H83: =EDATE(E11,1) -> 2017-03-28
B84: Физические лица | C84: 1061843 | D84: 1080706 | E84: 1102966 | F84: 1122053 | G84: 1125369 | H84: 1143968
B85: Юридические лица | C85: 18990 | D85: 19037 | E85: 18622 | F85: 18499 | G85: 18472 | H85: 18496
B86: Иностранные лица | C86: 9026 | D86: 9070 | E86: 9215 | F86: 9371 | G86: 9319 | H86: 9908
B87: Клиенты, передавшие свои средства в ДУ | C87: 7021 | D87: 10116 | E87: 10694 | F87: 10991 | G87: 13509 | H87: 14098
B88: Всего | C88: 1096880 | D88: 1118929 | E88: 1141497 | F88: 1160914 | G88: 1166669 | H88: 1186470
B124: Дополнительные показатели за | C124: =B3 -> 2017-03-31
H127: Таблица 1
B128: Участники торгов | G128: Абсолютные показатели
B129: Количество Участников торгов, имеющих активных клиентов | G129: 329
B133: Списки ведущих операторов фондового рынка - клиенты Участников торгов за | F133: =C6 -> 2017-03-31
B136: Ведущие операторы рынка – число зарегистрированных клиентов | H136: Таблица 1
B137: (по общему количеству уникальных клиентов всех типов, зарегистрированных в системе торгов биржи, в том числе в течение месяца)
B138: Наименование Участника торгов | G138: Количество клиентов
B139: ВТБ 24 (ПАО) | C139: ВТБ 24 (ПАО) | D139: ВТБ 24 (ПАО) | E139: ВТБ 24 (ПАО) | F139: ВТБ 24 (ПАО) | G139: 254641 | H139: 254641
B140: Сбербанк | C140: Сбербанк | D140: Сбербанк | E140: Сбербанк | F140: Сбербанк | G140: 202669 | H140: 202669
B141: ФГ БКС | C141: ФГ БКС | D141: ФГ БКС | E141: ФГ БКС | F141: ФГ БКС | G141: 200693 | H141: 200693
B142: АО "ФИНАМ" | C142: АО "ФИНАМ" | D142: АО "ФИНАМ" | E142: АО "ФИНАМ" | F142: АО "ФИНАМ" | G142: 165478 | H142: 165478
B143: ФГ "ОТКРЫТИЕ" | C143: ФГ "ОТКРЫТИЕ" | D143: ФГ "ОТКРЫТИЕ" | E143: ФГ "ОТКРЫТИЕ" | F143: ФГ "ОТКРЫТИЕ" | G143: 100705 | H143: 100705
B144: АО "АЛЬФА-БАНК" | C144: АО "АЛЬФА-БАНК" | D144: АО "АЛЬФА-БАНК" | E144: АО "АЛЬФА-БАНК" | F144: АО "АЛЬФА-БАНК" | G144: 61418 | H144: 61418
B145: ООО "АТОН" | C145: ООО "АТОН" | D145: ООО "АТОН" | E145: ООО "АТОН" | F145: ООО "АТОН" | G145: 50386 | H145: 50386
B146: АЛОР БРОКЕР | C146: АЛОР БРОКЕР | D146: АЛОР БРОКЕР | E146: АЛОР БРОКЕР | F146: АЛОР БРОКЕР | G146: 33444 | H146: 33444
B147: КИТ Финанс (АО) | C147: КИТ Финанс (АО) | D147: КИТ Финанс (АО) | E147: КИТ Финанс (АО) | F147: КИТ Финанс (АО) | G147: 22103 | H147: 22103
B148: ООО "Инвестиционная палата" | C148: ООО "Инвестиционная палата" | D148: ООО "Инвестиционная палата" | E148: ООО "Инвестиционная палата" | F148: ООО "Инвестиционная палата" | G148: 19859 | H148: 19859
B151: Ведущие операторы рынка – число активных клиентов | H151: Таблица 2
B152: (по количеству уникальных клиентов, совершивших хотя бы одну сделку за месяц)
B153: Наименование Участника торгов | G153: Количество клиентов
B154: АО "ФИНАМ" | C154: АО "ФИНАМ" | D154: АО "ФИНАМ" | E154: АО "ФИНАМ" | F154: АО "ФИНАМ" | G154: 16607 | H154: 16607
B155: ФГ БКС | C155: ФГ БКС | D155: ФГ БКС | E155: ФГ БКС | F155: ФГ БКС | G155: 14414 | H155: 14414
B156: Сбербанк | C156: Сбербанк | D156: Сбербанк | E156: Сбербанк | F156: Сбербанк | G156: 13570 | H156: 13570
B157: ФГ "ОТКРЫТИЕ" | C157: ФГ "ОТКРЫТИЕ" | D157: ФГ "ОТКРЫТИЕ" | E157: ФГ "ОТКРЫТИЕ" | F157: ФГ "ОТКРЫТИЕ" | G157: 12371 | H157: 12371
B158: ВТБ 24 (ПАО) | C158: ВТБ 24 (ПАО) | D158: ВТБ 24 (ПАО) | E158: ВТБ 24 (ПАО) | F158: ВТБ 24 (ПАО) | G158: 11981 | H158: 11981
B159: ООО УК "Альфа-Капитал" | C159: ООО УК "Альфа-Капитал" | D159: ООО УК "Альфа-Капитал" | E159: ООО УК "Альфа-Капитал" | F159: ООО УК "Альфа-Капитал" | G159: 4527 | H159: 4527
B160: АО "АЛЬФА-БАНК" | C160: АО "АЛЬФА-БАНК" | D160: АО "АЛЬФА-БАНК" | E160: АО "АЛЬФА-БАНК" | F160: АО "АЛЬФА-БАНК" | G160: 4252 | H160: 4252
B161: ООО "АТОН" | C161: ООО "АТОН" | D161: ООО "АТОН" | E161: ООО "АТОН" | F161: ООО "АТОН" | G161: 2794 | H161: 2794
B162: ПАО "Промсвязьбанк" | C162: ПАО "Промсвязьбанк" | D162: ПАО "Промсвязьбанк" | E162: ПАО "Промсвязьбанк" | F162: ПАО "Промсвязьбанк" | G162: 2602 | H162: 2602
B163: Банк ГПБ (АО) | C163: Банк ГПБ (АО) | D163: Банк ГПБ (АО) | E163: Банк ГПБ (АО) | F163: Банк ГПБ (АО) | G163: 2556 | H163: 2556
B166: Ведущие операторы рынка – объем клиентских операций | H166: Таблица 3
B167: (по стоимостному объему сделок, заключенных в интересах клиентов за месяц)
B168: Наименование Участника торгов | G168: Торговый оборот, руб.
B169: ФГ "ОТКРЫТИЕ" | C169: ФГ "ОТКРЫТИЕ" | D169: ФГ "ОТКРЫТИЕ" | E169: ФГ "ОТКРЫТИЕ" | F169: ФГ "ОТКРЫТИЕ" | G169: 2.477493011e+12 | H169: 2.477493011e+12
B170: ФГ БКС | C170: ФГ БКС | D170: ФГ БКС | E170: ФГ БКС | F170: ФГ БКС | G170: 2.061253075e+12 | H170: 2.061253075e+12
B171: ООО "БК РЕГИОН" | C171: ООО "БК РЕГИОН" | D171: ООО "БК РЕГИОН" | E171: ООО "БК РЕГИОН" | F171: ООО "БК РЕГИОН" | G171: 1.582278128e+12 | H171: 1.582278128e+12
B172: ООО "Ренессанс Брокер" | C172: ООО "Ренессанс Брокер" | D172: ООО "Ренессанс Брокер" | E172: ООО "Ренессанс Брокер" | F172: ООО "Ренессанс Брокер" | G172: 1.163889393e+12 | H172: 1.163889393e+12
B173: ПАО "Промсвязьбанк" | C173: ПАО "Промсвязьбанк" | D173: ПАО "Промсвязьбанк" | E173: ПАО "Промсвязьбанк" | F173: ПАО "Промсвязьбанк" | G173: 6.396794586e+11 | H173: 6.396794586e+11
B174: ООО "УНИВЕР Капитал" | C174: ООО "УНИВЕР Капитал" | D174: ООО "УНИВЕР Капитал" | E174: ООО "УНИВЕР Капитал" | F174: ООО "УНИВЕР Капитал" | G174: 5.960689861e+11 | H174: 5.960689861e+11
B175: АО "ФИНАМ" | C175: АО "ФИНАМ" | D175: АО "ФИНАМ" | E175: АО "ФИНАМ" | F175: АО "ФИНАМ" | G175: 5.504968124e+11 | H175: 5.504968124e+11
B176: ПАО "Совкомбанк" | C176: ПАО "Совкомбанк" | D176: ПАО "Совкомбанк" | E176: ПАО "Совкомбанк" | F176: ПАО "Совкомбанк" | G176: 5.469436748e+11 | H176: 5.469436748e+11
B177: ООО "ИФК "МЕТРОПОЛЬ" | C177: ООО "ИФК "МЕТРОПОЛЬ" | D177: ООО "ИФК "МЕТРОПОЛЬ" | E177: ООО "ИФК "МЕТРОПОЛЬ" | F177: ООО "ИФК "МЕТРОПОЛЬ" | G177: 5.367317248e+11 | H177: 5.367317248e+11
B178: Сбербанк | C178: Сбербанк | D178: Сбербанк | E178: Сбербанк | F178: Сбербанк | G178: 4.898014701e+11 | H178: 4.898014701e+11

Sheet April
B2: Клиенты Участников торгов фондового рынка Московской Биржи
B3: 2017-04-30
B6: Динамика количества клиентов за | C6: =B3 -> 2017-04-30
B10: Количество зарегистрированных клиентов в Системе торгов (по состоянию на последний день месяца): | H10: Таблица 1
B11: Группы клиентов | E11: =EDATE(B3,-1) -> 2017-03-30 | F11: =B3 -> 2017-04-30 | G11: Изменение (ед.) | H11: Изменение (%)
B12: Физические лица | E12: 1692079 | F12: 1594345 | G12: =F12-E12 -> -97734 | H12: =F12/E12-1 -> -0.05775971453
B13: Юридические лица | E13: 30318 | F13: 30280 | G13: =F13-E13 -> -38 | H13: -0.00125338083
B14: Иностранные лица | E14: 14943 | F14: 14340 | G14: -603 | H14: -0.0403533427
B15: Иностранные физические лица | E15: 7393 | F15: 6862 | G15: -531 | H15: -0.07182469904
B16: Иностранные юридические лица | E16: 7550 | F16: 7478 | G16: -72 | H16: -0.009536423841
B17: Клиенты, передавшие свои средства в ДУ | E17: 35406 | F17: 28749 | G17: -6657 | H17: -0.1880189798
B18: Всего | E18: 1772746 | F18: 1667714 | G18: -105032 | H18: -0.05924819461
B21: Количество уникальных клиентов в Системе торгов (по состоянию на последний день месяца): | H21: Таблица 2
B22: Группы клиентов | E22: =EDATE(B3,-1) -> 2017-03-30 | F22: =F11 -> 2017-04-30 | G22: Изменение (ед.) | H22: Изменение (%)
B23: Физические лица | E23: 1143968 | F23: 1156796 | G23: =F23-E23 -> 12828 | H23: =F23/E23-1 -> 0.01121360038
B24: Юридические лица | E24: 18496 | F24: 18504 | G24: =F24-E24 -> 8 | H24: =F24/E24-1 -> 0.0004325259516
B25: Иностранные лица | E25: 9908 | F25: 9540 | G25: -368 | H25: -0.03714170367
B26: Иностранные физические лица | E26: 6602 | F26: 6261 | G26: -341 | H26: -0.05165101484
B27: Иностранные юридические лица | E27: 3306 | F27: 3279 | G27: -27 | H27: -0.008166969147
B28: Клиенты, передавшие свои средства в ДУ | E28: 14098 | F28: 14622 | G28: 524 | H28: 0.03716839268
B29: Всего | E29: 1186470 | F29: 1199462 | G29: 12992 | H29: 0.01095012938
B32: Количество активных клиентов в Системе торгов (совершивших в течение месяца хотя бы одну сделку): | H32: Таблица 3
B33: Группы клиентов | E33: =EDATE(B3,-1) -> 2017-03-30 | F33: =F11 -> 2017-04-30 | G33: Изменение (ед.) | H33: Изменение (%)
B34: Физические лица | E34: 89139 | F34: 88993 | G34: =F34-E34 -> -146 | H34: =F34/E34-1 -> -0.001637891383
B35: Юридические лица | E35: 1054 | F35: 1028 | G35: -26 | H35: -0.02466793169
B36: Иностранные лица | E36: 751 | F36: 724 | G36: -27 | H36: -0.03595206391
B37: Иностранные физические лица | E37: 467 | F37: 443 | G37: -24 | H37: -0.05139186296
B38: Иностранные юридические лица | E38: 284 | F38: 281 | G38: -3 | H38: -0.01056338028
B39: Клиенты, передавшие свои средства в ДУ | E39: 4968 | F39: 4206 | G39: -762 | H39: -0.1533816425
B40: Всего | E40: 95912 | F40: 94951 | G40: -961 | H40: -0.0100196013
B44: Изменение количества уникальных клиентов - ретроспективные данные
B48: Количество уникальных клиентов в Системе торгов (по состоянию на последний день месяца) (ежегодная статистика): | H48: Таблица 1
B49: Группы клиентов | E49: 2012-12-31 | F49: 2013-12-31 | G49: 2014-12-31 | H49: 2015-12-31 | I49: 2016-12-31
B50: Физические лица | E50: 805549 | F50: 881844 | G50: 944559 | H50: 1006751 | I50: 1102966
B51: Юридические лица | E51: 17821 | F51: 19539 | G51: 20178 | H51: 20753 | I51: 18622
B52: Иностранные лица | E52: 5876 | F52: 6957 | G52: 7486 | H52: 8729 | I52: 9215
B53: Клиенты, передавшие свои средства в ДУ | E53: 5261 | F53: 5182 | G53: 5142 | H53: 3836 | I53: 10694
B54: Всего | E54: 834507 | F54: 913522 | G54: 977365 | H54: 1040069 | I54: 1141497
B82: Количество уникальных клиентов в Системе торгов (по состоянию на последний день месяца) (за последние 6 месяцев): | H82: Таблица 2
B83: Группы клиентов | C83: =EDATE(D83,-1) -> 2016-11-28 | D83: =EDATE(E83,-1) -> 2016-12-28 | E83: =EDATE(F83,-1) -> 2017-01-28 | F83: =EDATE(G83,-1) -> 2017-02-28 | G83: =EDATE(H83,-1) -> 2017-03-30 | H83: =EDATE(E11,1) -> 2017-04-30
B84: Физические лица | C84: 1080706 | D84: 1102966 | E84: 1122053 | F84: 1125369 | G84: 1143968 | H84: 1156796
B85: Юридические лица | C85: 19037 | D85: 18622 | E85: 18499 | F85: 18472 | G85: 18496 | H85: 18504
B86: Иностранные лица | C86: 9070 | D86: 9215 | E86: 9371 | F86: 9319 | G86: 9908 | H86: 9540
B87: Клиенты, передавшие свои средства в ДУ | C87: 10116 | D87: 10694 | E87: 10991 | F87: 13509 | G87: 14098 | H87: 14622
B88: Всего | C88: 1118929 | D88: 1141497 | E88: 1160914 | F88: 1166669 | G88: 1186470 | H88: 1199462
B124: Дополнительные показатели за | C124: =B3 -> 2017-04-30
H127: Таблица 1
B128: Участники торгов | G128: Абсолютные показатели
B129: Количество Участников торгов, имеющих активных клиентов | G129: 330
B133: Списки ведущих операторов фондового рынка - клиенты Участников торгов за | F133: =C6 -> 2017-04-30
B136: Ведущие операторы рынка – число зарегистрированных клиентов | H136: Таблица 1
B137: (по общему количеству уникальных клиентов всех типов, зарегистрированных в системе торгов биржи, в том числе в течение месяца)
B138: Наименование Участника торгов | G138: Количество клиентов
B139: ВТБ 24 (ПАО) | C139: ВТБ 24 (ПАО) | D139: ВТБ 24 (ПАО) | E139: ВТБ 24 (ПАО) | F139: ВТБ 24 (ПАО) | G139: 257569 | H139: 257569
B140: Сбербанк | C140: Сбербанк | D140: Сбербанк | E140: Сбербанк | F140: Сбербанк | G140: 207913 | H140: 207913
B141: ФГ БКС | C141: ФГ БКС | D141: ФГ БКС | E141: ФГ БКС | F141: ФГ БКС | G141: 207178 | H141: 207178
B142: АО "ФИНАМ" | C142: АО "ФИНАМ" | D142: АО "ФИНАМ" | E142: АО "ФИНАМ" | F142: АО "ФИНАМ" | G142: 167040 | H142: 167040
B143: ФГ "ОТКРЫТИЕ" | C143: ФГ "ОТКРЫТИЕ" | D143: ФГ "ОТКРЫТИЕ" | E143: ФГ "ОТКРЫТИЕ" | F143: ФГ "ОТКРЫТИЕ" | G143: 102560 | H143: 102560
B144: АО "АЛЬФА-БАНК" | C144: АО "АЛЬФА-БАНК" | D144: АО "АЛЬФА-БАНК" | E144: АО "АЛЬФА-БАНК" | F144: АО "АЛЬФА-БАНК" | G144: 61459 | H144: 61459
B145: ООО "АТОН" | C145: ООО "АТОН" | D145: ООО "АТОН" | E145: ООО "АТОН" | F145: ООО "АТОН" | G145: 50654 | H145: 50654
B146: АЛОР БРОКЕР | C146: АЛОР БРОКЕР | D146: АЛОР БРОКЕР | E146: АЛОР БРОКЕР | F146: АЛОР БРОКЕР | G146: 33571 | H146: 33571
B147: КИТ Финанс (ПАО) | C147: КИТ Финанс (ПАО) | D147: КИТ Финанс (ПАО) | E147: КИТ Финанс (ПАО) | F147: КИТ Финанс (ПАО) | G147: 22227 | H147: 22227
B148: ООО "Инвестиционная палата" | C148: ООО "Инвестиционная палата" | D148: ООО "Инвестиционная палата" | E148: ООО "Инвестиционная палата" | F148: ООО "Инвестиционная палата" | G148: 19859 | H148: 19859
B151: Ведущие операторы рынка – число активных клиентов | H151: Таблица 2
B152: (по количеству уникальных клиентов, совершивших хотя бы одну сделку за месяц)
B153: Наименование Участника торгов | G153: Количество клиентов
B154: АО "ФИНАМ" | C154: АО "ФИНАМ" | D154: АО "ФИНАМ" | E154: АО "ФИНАМ" | F154: АО "ФИНАМ" | G154: 16058 | H154: 16058
B155: ФГ БКС | C155: ФГ БКС | D155: ФГ БКС | E155: ФГ БКС | F155: ФГ БКС | G155: 14158 | H155: 14158
B156: Сбербанк | C156: Сбербанк | D156: Сбербанк | E156: Сбербанк | F156: Сбербанк | G156: 12830 | H156: 12830
B157: ВТБ 24 (ПАО) | C157: ВТБ 24 (ПАО) | D157: ВТБ 24 (ПАО) | E157: ВТБ 24 (ПАО) | F157: ВТБ 24 (ПАО) | G157: 12054 | H157: 12054
B158: ФГ "ОТКРЫТИЕ" | C158: ФГ "ОТКРЫТИЕ" | D158: ФГ "ОТКРЫТИЕ" | E158: ФГ "ОТКРЫТИЕ" | F158: ФГ "ОТКРЫТИЕ" | G158: 11539 | H158: 11539
B159: АО "АЛЬФА-БАНК" | C159: АО "АЛЬФА-БАНК" | D159: АО "АЛЬФА-БАНК" | E159: АО "АЛЬФА-БАНК" | F159: АО "АЛЬФА-БАНК" | G159: 4160 | H159: 4160
B160: ООО УК "Альфа-Капитал" | C160: ООО УК "Альфа-Капитал" | D160: ООО УК "Альфа-Капитал" | E160: ООО УК "Альфа-Капитал" | F160: ООО УК "Альфа-Капитал" | G160: 3757 | H160: 3757
B161: ООО "АТОН" | C161: ООО "АТОН" | D161: ООО "АТОН" | E161: ООО "АТОН" | F161: ООО "АТОН" | G161: 2764 | H161: 2764
B162: ПАО "Промсвязьбанк" | C162: ПАО "Промсвязьбанк" | D162: ПАО "Промсвязьбанк" | E162: ПАО "Промсвязьбанк" | F162: ПАО "Промсвязьбанк" | G162: 2603 | H162: 2603
B163: Банк ГПБ (АО) | C163: Банк ГПБ (АО) | D163: Банк ГПБ (АО) | E163: Банк ГПБ (АО) | F163: Банк ГПБ (АО) | G163: 2368 | H163: 2368
B166: Ведущие операторы рынка – объем клиентских операций | H166: Таблица 3
B167: (по стоимостному объему сделок, заключенных в интересах клиентов за месяц)
B168: Наименование Участника торгов | G168: Торговый оборот, руб.
B169: ФГ "ОТКРЫТИЕ" | C169: ФГ "ОТКРЫТИЕ" | D169: ФГ "ОТКРЫТИЕ" | E169: ФГ "ОТКРЫТИЕ" | F169: ФГ "ОТКРЫТИЕ" | G169: 2.439067961e+12 | H169: 2.439067961e+12
B170: ФГ БКС | C170: ФГ БКС | D170: ФГ БКС | E170: ФГ БКС | F170: ФГ БКС | G170: 1.716178153e+12 | H170: 1.716178153e+12
B171: ООО "БК РЕГИОН" | C171: ООО "БК РЕГИОН" | D171: ООО "БК РЕГИОН" | E171: ООО "БК РЕГИОН" | F171: ООО "БК РЕГИОН" | G171: 1.636761533e+12 | H171: 1.636761533e+12
B172: ООО "Ренессанс Брокер" | C172: ООО "Ренессанс Брокер" | D172: ООО "Ренессанс Брокер" | E172: ООО "Ренессанс Брокер" | F172: ООО "Ренессанс Брокер" | G172: 1.029465141e+12 | H172: 1.029465141e+12
B173: ООО "УНИВЕР Капитал" | C173: ООО "УНИВЕР Капитал" | D173: ООО "УНИВЕР Капитал" | E173: ООО "УНИВЕР Капитал" | F173: ООО "УНИВЕР Капитал" | G173: 5.384572598e+11 | H173: 5.384572598e+11
B174: ПАО "Промсвязьбанк" | C174: ПАО "Промсвязьбанк" | D174: ПАО "Промсвязьбанк" | E174: ПАО "Промсвязьбанк" | F174: ПАО "Промсвязьбанк" | G174: 5.015750308e+11 | H174: 5.015750308e+11
B175: ООО "ИК ВЕЛЕС Капитал" | C175: ООО "ИК ВЕЛЕС Капитал" | D175: ООО "ИК ВЕЛЕС Капитал" | E175: ООО "ИК ВЕЛЕС Капитал" | F175: ООО "ИК ВЕЛЕС Капитал" | G175: 4.919499004e+11 | H175: 4.919499004e+11
B176: ООО "ИФК "МЕТРОПОЛЬ" | C176: ООО "ИФК "МЕТРОПОЛЬ" | D176: ООО "ИФК "МЕТРОПОЛЬ" | E176: ООО "ИФК "МЕТРОПОЛЬ" | F176: ООО "ИФК "МЕТРОПОЛЬ" | G176: 4.905731491e+11 | H176: 4.905731491e+11
B177: АО "ФИНАМ" | C177: АО "ФИНАМ" | D177: АО "ФИНАМ" | E177: АО "ФИНАМ" | F177: АО "ФИНАМ" | G177: 4.840184388e+11 | H177: 4.840184388e+11
B178: Сбербанк | C178: Сбербанк | D178: Сбербанк | E178: Сбербанк | F178: Сбербанк | G178: 3.572681268e+11 | H178: 3.572681268e+11

Sheet May
B2: Клиенты Участников торгов фондового рынка Московской Биржи
B3: 2017-05-31
B6: Динамика количества клиентов за | C6: =B3 -> 2017-05-31
B10: Количество зарегистрированных клиентов в Системе торгов (по состоянию на последний день месяца): | H10: Таблица 1
B11: Группы клиентов | E11: =EDATE(B3,-1) -> 2017-04-30 | F11: =B3 -> 2017-05-31 | G11: Изменение (ед.) | H11: Изменение (%)
B12: Физические лица | E12: 1594345 | F12: 1624903 | G12: =F12-E12 -> 30558 | H12: =F12/E12-1 -> 0.01916649157
B13: Юридические лица | E13: 30280 | F13: 30158 | G13: =F13-E13 -> -122 | H13: -0.004029062087
B14: Иностранные лица | E14: 14340 | F14: 14612 | G14: 272 | H14: 0.0189679219
B15: Иностранные физические лица | E15: 6862 | F15: 6928 | G15: 66 | H15: 0.009618187117
B16: Иностранные юридические лица | E16: 7478 | F16: 7684 | G16: 206 | H16: 0.02754747259
B17: Клиенты, передавшие свои средства в ДУ | E17: 28749 | F17: 29488 | G17: 739 | H17: 0.02570524192
B18: Всего | E18: 1667714 | F18: 1699161 | G18: 31447 | H18: 0.01885635067
B21: Количество уникальных клиентов в Системе торгов (по состоянию на последний день месяца): | H21: Таблица 2
B22: Группы клиентов | E22: =EDATE(B3,-1) -> 2017-04-30 | F22: =F11 -> 2017-05-31 | G22: Изменение (ед.) | H22: Изменение (%)
B23: Физические лица | E23: 1156796 | F23: 1178131 | G23: =F23-E23 -> 21335 | H23: =F23/E23-1 -> 0.01844318272
B24: Юридические лица | E24: 18504 | F24: 18473 | G24: =F24-E24 -> -31 | H24: =F24/E24-1 -> -0.001675313446
B25: Иностранные лица | E25: 9540 | F25: 9591 | G25: 51 | H25: 0.00534591195
B26: Иностранные физические лица | E26: 6261 | F26: 6324 | G26: 63 | H26: 0.01006229037
B27: Иностранные юридические лица | E27: 3279 | F27: 3267 | G27: -12 | H27: -0.003659652333
B28: Клиенты, передавшие свои средства в ДУ | E28: 14622 | F28: 15082 | G28: 460 | H28: 0.03145944467
B29: Всего | E29: 1199462 | F29: 1221277 | G29: 21815 | H29: 0.01818732065
B32: Количество активных клиентов в Системе торгов (совершивших в течение месяца хотя бы одну сделку): | H32: Таблица 3
B33: Группы клиентов | E33: =EDATE(B3,-1) -> 2017-04-30 | F33: =F11 -> 2017-05-31 | G33: Изменение (ед.) | H33: Изменение (%)
B34: Физические лица | E34: 88993 | F34: 94788 | G34: =F34-E34 -> 5795 | H34: =F34/E34-1 -> 0.06511748115
B35: Юридические лица | E35: 1028 | F35: 1015 | G35: -13 | H35: -0.0126459144
B36: Иностранные лица | E36: 724 | F36: 704 | G36: -20 | H36: -0.02762430939
B37: Иностранные физические лица | E37: 443 | F37: 424 | G37: -19 | H37: -0.04288939052
B38: Иностранные юридические лица | E38: 281 | F38: 280 | G38: -1 | H38: -0.003558718861
B39: Клиенты, передавшие свои средства в ДУ | E39: 4206 | F39: 3858 | G39: -348 | H39: -0.08273894437
B40: Всего | E40: 94951 | F40: 100365 | G40: 5414 | H40: 0.05701888342
B44: Изменение количества уникальных клиентов - ретроспективные данные
B48: Количество уникальных клиентов в Системе торгов (по состоянию на последний день месяца) (ежегодная статистика): | H48: Таблица 1
B49: Группы клиентов | E49: 2012-12-31 | F49: 2013-12-31 | G49: 2014-12-31 | H49: 2015-12-31 | I49: 2016-12-31
B50: Физические лица | E50: 805549 | F50: 881844 | G50: 944559 | H50: 1006751 | I50: 1102966
B51: Юридические лица | E51: 17821 | F51: 19539 | G51: 20178 | H51: 20753 | I51: 18622
B52: Иностранные лица | E52: 5876 | F52: 6957 | G52: 7486 | H52: 8729 | I52: 9215
B53: Клиенты, передавшие свои средства в ДУ | E53: 5261 | F53: 5182 | G53: 5142 | H53: 3836 | I53: 10694
B54: Всего | E54: 834507 | F54: 913522 | G54: 977365 | H54: 1040069 | I54: 1141497
B82: Количество уникальных клиентов в Системе торгов (по состоянию на последний день месяца) (за последние 6 месяцев): | H82: Таблица 2
B83: Группы клиентов | C83: =EDATE(D83,-1) -> 2016-12-28 | D83: =EDATE(E83,-1) -> 2017-01-28 | E83: =EDATE(F83,-1) -> 2017-02-28 | F83: =EDATE(G83,-1) -> 2017-03-30 | G83: =EDATE(H83,-1) -> 2017-04-30 | H83: =EDATE(E11,1) -> 2017-05-30
B84: Физические лица | C84: 1102966 | D84: 1122053 | E84: 1125369 | F84: 1143968 | G84: 1156796 | H84: 1178131
B85: Юридические лица | C85: 18622 | D85: 18499 | E85: 18472 | F85: 18496 | G85: 18504 | H85: 18473
B86: Иностранные лица | C86: 9215 | D86: 9371 | E86: 9319 | F86: 9908 | G86: 9540 | H86: 9591
B87: Клиенты, передавшие свои средства в ДУ | C87: 10694 | D87: 10991 | E87: 13509 | F87: 14098 | G87: 14622 | H87: 15082
B88: Всего | C88: 1141497 | D88: 1160914 | E88: 1166669 | F88: 1186470 | G88: 1199462 | H88: 1221277
B124: Дополнительные показатели за | C124: =B3 -> 2017-05-31
H127: Таблица 1
B128: Участники торгов | G128: Абсолютные показатели
B129: Количество Участников торгов, имеющих активных клиентов | G129: 323
B133: Списки ведущих операторов фондового рынка - клиенты Участников торгов за | F133: =C6 -> 2017-05-31
B136: Ведущие операторы рынка – число зарегистрированных клиентов | H136: Таблица 1
B137: (по общему количеству уникальных клиентов всех типов, зарегистрированных в системе торгов биржи, в том числе в течение месяца)
B138: Наименование Участника торгов | G138: Количество клиентов
B139: ВТБ 24 (ПАО) | C139: ВТБ 24 (ПАО) | D139: ВТБ 24 (ПАО) | E139: ВТБ 24 (ПАО) | F139: ВТБ 24 (ПАО) | G139: 261057 | H139: 261057
B140: ФГ БКС | C140: ФГ БКС | D140: ФГ БКС | E140: ФГ БКС | F140: ФГ БКС | G140: 215592 | H140: 215592
B141: Сбербанк | C141: Сбербанк | D141: Сбербанк | E141: Сбербанк | F141: Сбербанк | G141: 215439 | H141: 215439
B142: АО "ФИНАМ" | C142: АО "ФИНАМ" | D142: АО "ФИНАМ" | E142: АО "ФИНАМ" | F142: АО "ФИНАМ" | G142: 168501 | H142: 168501
B143: ФГ "ОТКРЫТИЕ" | C143: ФГ "ОТКРЫТИЕ" | D143: ФГ "ОТКРЫТИЕ" | E143: ФГ "ОТКРЫТИЕ" | F143: ФГ "ОТКРЫТИЕ" | G143: 104515 | H143: 104515
B144: АО "АЛЬФА-БАНК" | C144: АО "АЛЬФА-БАНК" | D144: АО "АЛЬФА-БАНК" | E144: АО "АЛЬФА-БАНК" | F144: АО "АЛЬФА-БАНК" | G144: 61251 | H144: 61251
B145: ООО "АТОН" | C145: ООО "АТОН" | D145: ООО "АТОН" | E145: ООО "АТОН" | F145: ООО "АТОН" | G145: 50899 | H145: 50899
B146: АЛОР БРОКЕР | C146: АЛОР БРОКЕР | D146: АЛОР БРОКЕР | E146: АЛОР БРОКЕР | F146: АЛОР БРОКЕР | G146: 33702 | H146: 33702
B147: КИТ Финанс (ПАО) | C147: КИТ Финанс (ПАО) | D147: КИТ Финанс (ПАО) | E147: КИТ Финанс (ПАО) | F147: КИТ Финанс (ПАО) | G147: 22375 | H147: 22375
B148: ООО "Инвестиционная палата" | C148: ООО "Инвестиционная палата" | D148: ООО "Инвестиционная палата" | E148: ООО "Инвестиционная палата" | F148: ООО "Инвестиционная палата" | G148: 19859 | H148: 19859
B151: Ведущие операторы рынка – число активных клиентов | H151: Таблица 2
B152: (по количеству уникальных клиентов, совершивших хотя бы одну сделку за месяц)
B153: Наименование Участника торгов | G153: Количество клиентов
B154: АО "ФИНАМ" | C154: АО "ФИНАМ" | D154: АО "ФИНАМ" | E154: АО "ФИНАМ" | F154: АО "ФИНАМ" | G154: 16488 | H154: 16488
B155: ФГ БКС | C155: ФГ БКС | D155: ФГ БКС | E155: ФГ БКС | F155: ФГ БКС | G155: 14461 | H155: 14461
B156: Сбербанк | C156: Сбербанк | D156: Сбербанк | E156: Сбербанк | F156: Сбербанк | G156: 12856 | H156: 12856
B157: ФГ "ОТКРЫТИЕ" | C157: ФГ "ОТКРЫТИЕ" | D157: ФГ "ОТКРЫТИЕ" | E157: ФГ "ОТКРЫТИЕ" | F157: ФГ "ОТКРЫТИЕ" | G157: 12102 | H157: 12102
B158: ВТБ 24 (ПАО) | C158: ВТБ 24 (ПАО) | D158: ВТБ 24 (ПАО) | E158: ВТБ 24 (ПАО) | F158: ВТБ 24 (ПАО) | G158: 11131 | H158: 11131
B159: АО "АЛЬФА-БАНК" | C159: АО "АЛЬФА-БАНК" | D159: АО "АЛЬФА-БАНК" | E159: АО "АЛЬФА-БАНК" | F159: АО "АЛЬФА-БАНК" | G159: 4181 | H159: 4181
B160: ООО УК "Альфа-Капитал" | C160: ООО УК "Альфа-Капитал" | D160: ООО УК "Альфа-Капитал" | E160: ООО УК "Альфа-Капитал" | F160: ООО УК "Альфа-Капитал" | G160: 3455 | H160: 3455
B161: ПАО "Промсвязьбанк" | C161: ПАО "Промсвязьбанк" | D161: ПАО "Промсвязьбанк" | E161: ПАО "Промсвязьбанк" | F161: ПАО "Промсвязьбанк" | G161: 2690 | H161: 2690
B162: ООО "АТОН" | C162: ООО "АТОН" | D162: ООО "АТОН" | E162: ООО "АТОН" | F162: ООО "АТОН" | G162: 2626 | H162: 2626
B163: Банк ГПБ (АО) | C163: Банк ГПБ (АО) | D163: Банк ГПБ (АО) | E163: Банк ГПБ (АО) | F163: Банк ГПБ (АО) | G163: 2552 | H163: 2552
B166: Ведущие операторы рынка – объем клиентских операций | H166: Таблица 3
B167: (по стоимостному объему сделок, заключенных в интересах клиентов за месяц)
B168: Наименование Участника торгов | G168: Торговый оборот, руб.
B169: ФГ "ОТКРЫТИЕ" | C169: ФГ "ОТКРЫТИЕ" | D169: ФГ "ОТКРЫТИЕ" | E169: ФГ "ОТКРЫТИЕ" | F169: ФГ "ОТКРЫТИЕ" | G169: 2.60876243e+12 | H169: 2.60876243e+12
B170: ФГ БКС | C170: ФГ БКС | D170: ФГ БКС | E170: ФГ БКС | F170: ФГ БКС | G170: 2.000566236e+12 | H170: 2.000566236e+12
B171: ООО "БК РЕГИОН" | C171: ООО "БК РЕГИОН" | D171: ООО "БК РЕГИОН" | E171: ООО "БК РЕГИОН" | F171: ООО "БК РЕГИОН" | G171: 1.434786923e+12 | H171: 1.434786923e+12
B172: ООО "Ренессанс Брокер" | C172: ООО "Ренессанс Брокер" | D172: ООО "Ренессанс Брокер" | E172: ООО "Ренессанс Брокер" | F172: ООО "Ренессанс Брокер" | G172: 9.699417957e+11 | H172: 9.699417957e+11
B173: ПАО "Промсвязьбанк" | C173: ПАО "Промсвязьбанк" | D173: ПАО "Промсвязьбанк" | E173: ПАО "Промсвязьбанк" | F173: ПАО "Промсвязьбанк" | G173: 5.353725166e+11 | H173: 5.353725166e+11
B174: ООО "ИФК "МЕТРОПОЛЬ" | C174: ООО "ИФК "МЕТРОПОЛЬ" | D174: ООО "ИФК "МЕТРОПОЛЬ" | E174: ООО "ИФК "МЕТРОПОЛЬ" | F174: ООО "ИФК "МЕТРОПОЛЬ" | G174: 4.889073569e+11 | H174: 4.889073569e+11
B175: АО "ФИНАМ" | C175: АО "ФИНАМ" | D175: АО "ФИНАМ" | E175: АО "ФИНАМ" | F175: АО "ФИНАМ" | G175: 4.6198708e+11 | H175: 4.6198708e+11
B176: ООО "УНИВЕР Капитал" | C176: ООО "УНИВЕР Капитал" | D176: ООО "УНИВЕР Капитал" | E176: ООО "УНИВЕР Капитал" | F176: ООО "УНИВЕР Капитал" | G176: 4.511960259e+11 | H176: 4.511960259e+11
B177: ООО "ИК ВЕЛЕС Капитал" | C177: ООО "ИК ВЕЛЕС Капитал" | D177: ООО "ИК ВЕЛЕС Капитал" | E177: ООО "ИК ВЕЛЕС Капитал" | F177: ООО "ИК ВЕЛЕС Капитал" | G177: 3.898516054e+11 | H177: 3.898516054e+11
B178: Сбербанк | C178: Сбербанк | D178: Сбербанк | E178: Сбербанк | F178: Сбербанк | G178: 3.440937129e+11 | H178: 3.440937129e+11

Sheet June
B2: Клиенты Участников торгов фондового рынка Московской Биржи
B3: 2017-06-30
B6: Динамика количества клиентов за | C6: =B3 -> 2017-06-30
B10: Количество зарегистрированных клиентов в Системе торгов (по состоянию на последний день месяца): | H10: Таблица 1
B11: Группы клиентов | E11: =EDATE(B3,-1) -> 2017-05-30 | F11: =B3 -> 2017-06-30 | G11: Изменение (ед.) | H11: Изменение (%)
B12: Физические лица | E12: 1624903 | F12: 1710052 | G12: =F12-E12 -> 85149 | H12: =F12/E12-1 -> 0.05240251264
B13: Юридические лица | E13: 30158 | F13: 31339 | G13: =F13-E13 -> 1181 | H13: 0.03916042178
B14: Иностранные лица | E14: 14612 | F14: 14726 | G14: 114 | H14: 0.007801806734
B15: Иностранные физические лица | E15: 6928 | F15: 7237 | G15: 309 | H15: 0.04460161663
B16: Иностранные юридические лица | E16: 7684 | F16: 7489 | G16: -195 | H16: -0.0253774076
B17: Клиенты, передавшие свои средства в ДУ | E17: 29488 | F17: 30609 | G17: 1121 | H17: 0.03801546392
B18: Всего | E18: 1699161 | F18: 1786726 | G18: 87565 | H18: 0.0515342572
B21: Количество уникальных клиентов в Системе торгов (по состоянию на последний день месяца): | H21: Таблица 2
B22: Группы клиентов | E22: =EDATE(B3,-1) -> 2017-05-30 | F22: =F11 -> 2017-06-30 | G22: Изменение (ед.) | H22: Изменение (%)
B23: Физические лица | E23: 1178131 | F23: 1194087 | G23: =F23-E23 -> 15956 | H23: =F23/E23-1 -> 0.0135434854
B24: Юридические лица | E24: 18473 | F24: 18588 | G24: =F24-E24 -> 115 | H24: =F24/E24-1 -> 0.006225301792
B25: Иностранные лица | E25: 9591 | F25: 9805 | G25: 214 | H25: 0.02231258471
B26: Иностранные физические лица | E26: 6324 | F26: 6516 | G26: 192 | H26: 0.03036053131
B27: Иностранные юридические лица | E27: 3267 | F27: 3289 | G27: 22 | H27: 0.006734006734
B28: Клиенты, передавшие свои средства в ДУ | E28: 15082 | F28: 15779 | G28: 697 | H28: 0.04621402997
B29: Всего | E29: 1221277 | F29: 1238259 | G29: 16982 | H29: 0.01390511735
B32: Количество активных клиентов в Системе торгов (совершивших в течение месяца хотя бы одну сделку): | H32: Таблица 3
B33: Группы клиентов | E33: =EDATE(B3,-1) -> 2017-05-30 | F33: =F11 -> 2017-06-30 | G33: Изменение (ед.) | H33: Изменение (%)
B34: Физические лица | E34: 94788 | F34: 89203 | G34: =F34-E34 -> -5585 | H34: =F34/E34-1 -> -0.05892096046
B35: Юридические лица | E35: 1015 | F35: 1044 | G35: 29 | H35: 0.02857142857
B36: Иностранные лица | E36: 704 | F36: 718 | G36: 14 | H36: 0.01988636364
B37: Иностранные физические лица | E37: 424 | F37: 440 | G37: 16 | H37: 0.03773584906
B38: Иностранные юридические лица | E38: 280 | F38: 278 | G38: -2 | H38: -0.007142857143
B39: Клиенты, передавшие свои средства в ДУ | E39: 3858 | F39: 2854 | G39: -1004 | H39: -0.2602384655
B40: Всего | E40: 100365 | F40: 93819 | G40: -6546 | H40: -0.06522193992
B44: Изменение количества уникальных клиентов - ретроспективные данные
B48: Количество уникальных клиентов в Системе торгов (по состоянию на последний день месяца) (ежегодная статистика): | H48: Таблица 1
B49: Группы клиентов | E49: 2012-12-31 | F49: 2013-12-31 | G49: 2014-12-31 | H49: 2015-12-31 | I49: 2016-12-31
B50: Физические лица | E50: 805549 | F50: 881844 | G50: 944559 | H50: 1006751 | I50: 1102966
B51: Юридические лица | E51: 17821 | F51: 19539 | G51: 20178 | H51: 20753 | I51: 18622
B52: Иностранные лица | E52: 5876 | F52: 6957 | G52: 7486 | H52: 8729 | I52: 9215
B53: Клиенты, передавшие свои средства в ДУ | E53: 5261 | F53: 5182 | G53: 5142 | H53: 3836 | I53: 10694
B54: Всего | E54: 834507 | F54: 913522 | G54: 977365 | H54: 1040069 | I54: 1141497
B82: Количество уникальных клиентов в Системе торгов (по состоянию на последний день месяца) (за последние 6 месяцев): | H82: Таблица 2
B83: Группы клиентов | C83: =EDATE(D83,-1) -> 2017-01-28 | D83: =EDATE(E83,-1) -> 2017-02-28 | E83: =EDATE(F83,-1) -> 2017-03-30 | F83: =EDATE(G83,-1) -> 2017-04-30 | G83: =EDATE(H83,-1) -> 2017-05-30 | H83: =EDATE(E11,1) -> 2017-06-30
B84: Физические лица | C84: 1122053 | D84: 1125369 | E84: 1143968 | F84: 1156796 | G84: 1178131 | H84: 1194087
B85: Юридические лица | C85: 18499 | D85: 18472 | E85: 18496 | F85: 18504 | G85: 18473 | H85: 18588
B86: Иностранные лица | C86: 9371 | D86: 9319 | E86: 9908 | F86: 9540 | G86: 9591 | H86: 9805
B87: Клиенты, передавшие свои средства в ДУ | C87: 10991 | D87: 13509 | E87: 14098 | F87: 14622 | G87: 15082 | H87: 15779
B88: Всего | C88: 1160914 | D88: 1166669 | E88: 1186470 | F88: 1199462 | G88: 1221277 | H88: 1238259
B124: Дополнительные показатели за | C124: =B3 -> 2017-06-30
H127: Таблица 1
B128: Участники торгов | G128: Абсолютные показатели
B129: Количество Участников торгов, имеющих активных клиентов | G129: 332
B133: Списки ведущих операторов фондового рынка - клиенты Участников торгов за | F133: =C6 -> 2017-06-30
B136: Ведущие операторы рынка – число зарегистрированных клиентов | H136: Таблица 1
B137: (по общему количеству уникальных клиентов всех типов, зарегистрированных в системе торгов биржи, в том числе в течение месяца)
B138: Наименование Участника торгов | G138: Количество клиентов
B139: ВТБ 24 (ПАО) | C139: ВТБ 24 (ПАО) | D139: ВТБ 24 (ПАО) | E139: ВТБ 24 (ПАО) | F139: ВТБ 24 (ПАО) | G139: 262968 | H139: 262968
B140: ФГ БКС | C140: ФГ БКС | D140: ФГ БКС | E140: ФГ БКС | F140: ФГ БКС | G140: 223811 | H140: 223811
B141: Сбербанк | C141: Сбербанк | D141: Сбербанк | E141: Сбербанк | F141: Сбербанк | G141: 219107 | H141: 219107
B142: АО "ФИНАМ" | C142: АО "ФИНАМ" | D142: АО "ФИНАМ" | E142: АО "ФИНАМ" | F142: АО "ФИНАМ" | G142: 170034 | H142: 170034
B143: ФГ "ОТКРЫТИЕ" | C143: ФГ "ОТКРЫТИЕ" | D143: ФГ "ОТКРЫТИЕ" | E143: ФГ "ОТКРЫТИЕ" | F143: ФГ "ОТКРЫТИЕ" | G143: 106905 | H143: 106905
B144: АО "АЛЬФА-БАНК" | C144: АО "АЛЬФА-БАНК" | D144: АО "АЛЬФА-БАНК" | E144: АО "АЛЬФА-БАНК" | F144: АО "АЛЬФА-БАНК" | G144: 60879 | H144: 60879
B145: ООО "АТОН" | C145: ООО "АТОН" | D145: ООО "АТОН" | E145: ООО "АТОН" | F145: ООО "АТОН" | G145: 51112 | H145: 51112
B146: АЛОР БРОКЕР | C146: АЛОР БРОКЕР | D146: АЛОР БРОКЕР | E146: АЛОР БРОКЕР | F146: АЛОР БРОКЕР | G146: 33951 | H146: 33951
B147: КИТ Финанс (ПАО) | C147: КИТ Финанс (ПАО) | D147: КИТ Финанс (ПАО) | E147: КИТ Финанс (ПАО) | F147: КИТ Финанс (ПАО) | G147: 22470 | H147: 22470
B148: Банк ГПБ (АО) | C148: Банк ГПБ (АО) | D148: Банк ГПБ (АО) | E148: Банк ГПБ (АО) | F148: Банк ГПБ (АО) | G148: 20143 | H148: 20143
B151: Ведущие операторы рынка – число активных клиентов | H151: Таблица 2
B152: (по количеству уникальных клиентов, совершивших хотя бы одну сделку за месяц)
B153: Наименование Участника торгов | G153: Количество клиентов
B154: АО "ФИНАМ" | C154: АО "ФИНАМ" | D154: АО "ФИНАМ" | E154: АО "ФИНАМ" | F154: АО "ФИНАМ" | G154: 16058 | H154: 16058
B155: ФГ БКС | C155: ФГ БКС | D155: ФГ БКС | E155: ФГ БКС | F155: ФГ БКС | G155: 15188 | H155: 15188
B156: ФГ "ОТКРЫТИЕ" | C156: ФГ "ОТКРЫТИЕ" | D156: ФГ "ОТКРЫТИЕ" | E156: ФГ "ОТКРЫТИЕ" | F156: ФГ "ОТКРЫТИЕ" | G156: 12891 | H156: 12891
B157: Сбербанк | C157: Сбербанк | D157: Сбербанк | E157: Сбербанк | F157: Сбербанк | G157: 12431 | H157: 12431
B158: ВТБ 24 (ПАО) | C158: ВТБ 24 (ПАО) | D158: ВТБ 24 (ПАО) | E158: ВТБ 24 (ПАО) | F158: ВТБ 24 (ПАО) | G158: 10969 | H158: 10969
B159: АО "АЛЬФА-БАНК" | C159: АО "АЛЬФА-БАНК" | D159: АО "АЛЬФА-БАНК" | E159: АО "АЛЬФА-БАНК" | F159: АО "АЛЬФА-БАНК" | G159: 4251 | H159: 4251
B160: ПАО "Промсвязьбанк" | C160: ПАО "Промсвязьбанк" | D160: ПАО "Промсвязьбанк" | E160: ПАО "Промсвязьбанк" | F160: ПАО "Промсвязьбанк" | G160: 2737 | H160: 2737
B161: ООО "АТОН" | C161: ООО "АТОН" | D161: ООО "АТОН" | E161: ООО "АТОН" | F161: ООО "АТОН" | G161: 2559 | H161: 2559
B162: Банк ГПБ (АО) | C162: Банк ГПБ (АО) | D162: Банк ГПБ (АО) | E162: Банк ГПБ (АО) | F162: Банк ГПБ (АО) | G162: 2501 | H162: 2501
B163: ООО УК "Альфа-Капитал" | C163: ООО УК "Альфа-Капитал" | D163: ООО УК "Альфа-Капитал" | E163: ООО УК "Альфа-Капитал" | F163: ООО УК "Альфа-Капитал" | G163: 2386 | H163: 2386
B166: Ведущие операторы рынка – объем клиентских операций | H166: Таблица 3
B167: (по стоимостному объему сделок, заключенных в интересах клиентов за месяц)
B168: Наименование Участника торгов | G168: Торговый оборот, руб.
B169: ФГ "ОТКРЫТИЕ" | C169: ФГ "ОТКРЫТИЕ" | D169: ФГ "ОТКРЫТИЕ" | E169: ФГ "ОТКРЫТИЕ" | F169: ФГ "ОТКРЫТИЕ" | G169: 3.046214487e+12 | H169: 3.046214487e+12
B170: ООО "БК РЕГИОН" | C170: ООО "БК РЕГИОН" | D170: ООО "БК РЕГИОН" | E170: ООО "БК РЕГИОН" | F170: ООО "БК РЕГИОН" | G170: 2.34097292e+12 | H170: 2.34097292e+12
B171: ФГ БКС | C171: ФГ БКС | D171: ФГ БКС | E171: ФГ БКС | F171: ФГ БКС | G171: 2.27806073e+12 | H171: 2.27806073e+12
B172: ООО "Ренессанс Брокер" | C172: ООО "Ренессанс Брокер" | D172: ООО "Ренессанс Брокер" | E172: ООО "Ренессанс Брокер" | F172: ООО "Ренессанс Брокер" | G172: 1.14325137e+12 | H172: 1.14325137e+12
B173: ООО "УНИВЕР Капитал" | C173: ООО "УНИВЕР Капитал" | D173: ООО "УНИВЕР Капитал" | E173: ООО "УНИВЕР Капитал" | F173: ООО "УНИВЕР Капитал" | G173: 5.548809501e+11 | H173: 5.548809501e+11
B174: ООО "ИФК "МЕТРОПОЛЬ" | C174: ООО "ИФК "МЕТРОПОЛЬ" | D174: ООО "ИФК "МЕТРОПОЛЬ" | E174: ООО "ИФК "МЕТРОПОЛЬ" | F174: ООО "ИФК "МЕТРОПОЛЬ" | G174: 5.039970964e+11 | H174: 5.039970964e+11
B175: АО "ФИНАМ" | C175: АО "ФИНАМ" | D175: АО "ФИНАМ" | E175: АО "ФИНАМ" | F175: АО "ФИНАМ" | G175: 4.667965378e+11 | H175: 4.667965378e+11
B176: ООО "РОНИН" | C176: ООО "РОНИН" | D176: ООО "РОНИН" | E176: ООО "РОНИН" | F176: ООО "РОНИН" | G176: 4.662428797e+11 | H176: 4.662428797e+11
B177: ООО "АТОН" | C177: ООО "АТОН" | D177: ООО "АТОН" | E177: ООО "АТОН" | F177: ООО "АТОН" | G177: 4.57536027e+11 | H177: 4.57536027e+11
B178: Сбербанк | C178: Сбербанк | D178: Сбербанк | E178: Сбербанк | F178: Сбербанк | G178: 4.328160702e+11 | H178: 4.328160702e+11

Sheet July
B2: Клиенты Участников торгов фондового рынка Московской Биржи
B3: 2017-07-31
B6: Динамика количества клиентов за | C6: =B3 -> 2017-07-31
B10: Количество зарегистрированных клиентов в Системе торгов (по состоянию на последний день месяца): | H10: Таблица 1
B11: Группы клиентов | E11: =EDATE(B3,-1) -> 2017-06-30 | F11: =B3 -> 2017-07-31 | G11: Изменение (ед.) | H11: Изменение (%)
B12: Физические лица | E12: 1710052 | F12: 1678796 | G12: =F12-E12 -> -31256 | H12: =F12/E12-1 -> -0.01827780676
B13: Юридические лица | E13: 31339 | F13: 30807 | G13: =F13-E13 -> -532 | H13: -0.01697565334
B14: Иностранные лица | E14: 14726 | F14: 14869 | G14: 143 | H14: 0.009710715741
B15: Иностранные физические лица | E15: 7237 | F15: 7322 | G15: 85 | H15: 0.01174519829
B16: Иностранные юридические лица | E16: 7489 | F16: 7547 | G16: 58 | H16: 0.007744692215
B17: Клиенты, передавшие свои средства в ДУ | E17: 30609 | F17: 32267 | G17: 1658 | H17: 0.05416707504
B18: Всего | E18: 1786726 | F18: 1756739 | G18: -29987 | H18: -0.0167832113
B21: Количество уникальных клиентов в Системе торгов (по состоянию на последний день месяца): | H21: Таблица 2
B22: Группы клиентов | E22: =EDATE(B3,-1) -> 2017-06-30 | F22: =F11 -> 2017-07-31 | G22: Изменение (ед.) | H22: Изменение (%)
B23: Физические лица | E23: 1194087 | F23: 1207926 | G23: =F23-E23 -> 13839 | H23: =F23/E23-1 -> 0.01158960779
B24: Юридические лица | E24: 18588 | F24: 18578 | G24: =F24-E24 -> -10 | H24: =F24/E24-1 -> -0.0005379814934
B25: Иностранные лица | E25: 9805 | F25: 9901 | G25: 96 | H25: 0.009790922998
B26: Иностранные физические лица | E26: 6516 | F26: 6597 | G26: 81 | H26: 0.01243093923
B27: Иностранные юридические лица | E27: 3289 | F27: 3304 | G27: 15 | H27: 0.004560656735
B28: Клиенты, передавшие свои средства в ДУ | E28: 15779 | F28: 16881 | G28: 1102 | H28: 0.06983966031
B29: Всего | E29: 1238259 | F29: 1253286 | G29: 15027 | H29: 0.01213558714
B32: Количество активных клиентов в Системе торгов (совершивших в течение месяца хотя бы одну сделку): | H32: Таблица 3
B33: Группы клиентов | E33: =EDATE(B3,-1) -> 2017-06-30 | F33: =F11 -> 2017-07-31 | G33: Изменение (ед.) | H33: Изменение (%)
B34: Физические лица | E34: 89203 | F34: 89443 | G34: =F34-E34 -> 240 | H34: =F34/E34-1 -> 0.002690492472
B35: Юридические лица | E35: 1044 | F35: 1020 | G35: -24 | H35: -0.02298850575
B36: Иностранные лица | E36: 718 | F36: 716 | G36: -2 | H36: -0.00278551532
B37: Иностранные физические лица | E37: 440 | F37: 443 | G37: 3 | H37: 0.006818181818
B38: Иностранные юридические лица | E38: 278 | F38: 273 | G38: -5 | H38: -0.01798561151
B39: Клиенты, передавшие свои средства в ДУ | E39: 2854 | F39: 4917 | G39: 2063 | H39: 0.7228451296
B40: Всего | E40: 93819 | F40: 96096 | G40: 2277 | H40: 0.02427013718
B44: Изменение количества уникальных клиентов - ретроспективные данные
B48: Количество уникальных клиентов в Системе торгов (по состоянию на последний день месяца) (ежегодная статистика): | H48: Таблица 1
B49: Группы клиентов | E49: 2012-12-31 | F49: 2013-12-31 | G49: 2014-12-31 | H49: 2015-12-31 | I49: 2016-12-31
B50: Физические лица | E50: 805549 | F50: 881844 | G50: 944559 | H50: 1006751 | I50: 1102966
B51: Юридические лица | E51: 17821 | F51: 19539 | G51: 20178 | H51: 20753 | I51: 18622
B52: Иностранные лица | E52: 5876 | F52: 6957 | G52: 7486 | H52: 8729 | I52: 9215
B53: Клиенты, передавшие свои средства в ДУ | E53: 5261 | F53: 5182 | G53: 5142 | H53: 3836 | I53: 10694
B54: Всего | E54: 834507 | F54: 913522 | G54: 977365 | H54: 1040069 | I54: 1141497
B82: Количество уникальных клиентов в Системе торгов (по состоянию на последний день месяца) (за последние 6 месяцев): | H82: Таблица 2
B83: Группы клиентов | C83: =EDATE(D83,-1) -> 2017-02-28 | D83: =EDATE(E83,-1) -> 2017-03-30 | E83: =EDATE(F83,-1) -> 2017-04-30 | F83: =EDATE(G83,-1) -> 2017-05-30 | G83: =EDATE(H83,-1) -> 2017-06-30 | H83: =EDATE(E11,1) -> 2017-07-30
B84: Физические лица | C84: 1125369 | D84: 1143968 | E84: 1156796 | F84: 1178131 | G84: 1194087 | H84: 1207926
B85: Юридические лица | C85: 18472 | D85: 18496 | E85: 18504 | F85: 18473 | G85: 18588 | H85: 18578
B86: Иностранные лица | C86: 9319 | D86: 9908 | E86: 9540 | F86: 9591 | G86: 9805 | H86: 9901
B87: Клиенты, передавшие свои средства в ДУ | C87: 13509 | D87: 14098 | E87: 14622 | F87: 15082 | G87: 15779 | H87: 16881
B88: Всего | C88: 1166669 | D88: 1186470 | E88: 1199462 | F88: 1221277 | G88: 1238259 | H88: 1253286
B124: Дополнительные показатели за | C124: =B3 -> 2017-07-31
H127: Таблица 1
B128: Участники торгов | G128: Абсолютные показатели
B129: Количество Участников торгов, имеющих активных клиентов | G129: 329
B133: Списки ведущих операторов фондового рынка - клиенты Участников торгов за | F133: =C6 -> 2017-07-31
B136: Ведущие операторы рынка – число зарегистрированных клиентов | H136: Таблица 1
B137: (по общему количеству уникальных клиентов всех типов, зарегистрированных в системе торгов биржи, в том числе в течение месяца)
B138: Наименование Участника торгов | G138: Количество клиентов
B139: ВТБ 24 (ПАО) | C139: ВТБ 24 (ПАО) | D139: ВТБ 24 (ПАО) | E139: ВТБ 24 (ПАО) | F139: ВТБ 24 (ПАО) | G139: 264869 | H139: 264869
B140: ФГ БКС | C140: ФГ БКС | D140: ФГ БКС | E140: ФГ БКС | F140: ФГ БКС | G140: 229829 | H140: 229829
B141: Сбербанк | C141: Сбербанк | D141: Сбербанк | E141: Сбербанк | F141: Сбербанк | G141: 222165 | H141: 222165
B142: АО "ФИНАМ" | C142: АО "ФИНАМ" | D142: АО "ФИНАМ" | E142: АО "ФИНАМ" | F142: АО "ФИНАМ" | G142: 171595 | H142: 171595
B143: ФГ "ОТКРЫТИЕ" | C143: ФГ "ОТКРЫТИЕ" | D143: ФГ "ОТКРЫТИЕ" | E143: ФГ "ОТКРЫТИЕ" | F143: ФГ "ОТКРЫТИЕ" | G143: 108611 | H143: 108611
B144: АО "АЛЬФА-БАНК" | C144: АО "АЛЬФА-БАНК" | D144: АО "АЛЬФА-БАНК" | E144: АО "АЛЬФА-БАНК" | F144: АО "АЛЬФА-БАНК" | G144: 61056 | H144: 61056
B145: ООО "АТОН" | C145: ООО "АТОН" | D145: ООО "АТОН" | E145: ООО "АТОН" | F145: ООО "АТОН" | G145: 51327 | H145: 51327
B146: АЛОР БРОКЕР | C146: АЛОР БРОКЕР | D146: АЛОР БРОКЕР | E146: АЛОР БРОКЕР | F146: АЛОР БРОКЕР | G146: 34032 | H146: 34032
B147: КИТ Финанс (ПАО) | C147: КИТ Финанс (ПАО) | D147: КИТ Финанс (ПАО) | E147: КИТ Финанс (ПАО) | F147: КИТ Финанс (ПАО) | G147: 22557 | H147: 22557
B148: Банк ГПБ (АО) | C148: Банк ГПБ (АО) | D148: Банк ГПБ (АО) | E148: Банк ГПБ (АО) | F148: Банк ГПБ (АО) | G148: 20402 | H148: 20402
B151: Ведущие операторы рынка – число активных клиентов | H151: Таблица 2
B152: (по количеству уникальных клиентов, совершивших хотя бы одну сделку за месяц)
B153: Наименование Участника торгов | G153: Количество клиентов
B154: АО "ФИНАМ" | C154: АО "ФИНАМ" | D154: АО "ФИНАМ" | E154: АО "ФИНАМ" | F154: АО "ФИНАМ" | G154: 16340 | H154: 16340
B155: ФГ БКС | C155: ФГ БКС | D155: ФГ БКС | E155: ФГ БКС | F155: ФГ БКС | G155: 15169 | H155: 15169
B156: ФГ "ОТКРЫТИЕ" | C156: ФГ "ОТКРЫТИЕ" | D156: ФГ "ОТКРЫТИЕ" | E156: ФГ "ОТКРЫТИЕ" | F156: ФГ "ОТКРЫТИЕ" | G156: 13257 | H156: 13257
B157: Сбербанк | C157: Сбербанк | D157: Сбербанк | E157: Сбербанк | F157: Сбербанк | G157: 12835 | H157: 12835
B158: ВТБ 24 (ПАО) | C158: ВТБ 24 (ПАО) | D158: ВТБ 24 (ПАО) | E158: ВТБ 24 (ПАО) | F158: ВТБ 24 (ПАО) | G158: 11053 | H158: 11053
B159: ООО УК "Альфа-Капитал" | C159: ООО УК "Альфа-Капитал" | D159: ООО УК "Альфа-Капитал" | E159: ООО УК "Альфа-Капитал" | F159: ООО УК "Альфа-Капитал" | G159: 4475 | H159: 4475
B160: АО "АЛЬФА-БАНК" | C160: АО "АЛЬФА-БАНК" | D160: АО "АЛЬФА-БАНК" | E160: АО "АЛЬФА-БАНК" | F160: АО "АЛЬФА-БАНК" | G160: 4229 | H160: 4229
B161: ПАО "Промсвязьбанк" | C161: ПАО "Промсвязьбанк" | D161: ПАО "Промсвязьбанк" | E161: ПАО "Промсвязьбанк" | F161: ПАО "Промсвязьбанк" | G161: 2934 | H161: 2934
B162: ООО "АТОН" | C162: ООО "АТОН" | D162: ООО "АТОН" | E162: ООО "АТОН" | F162: ООО "АТОН" | G162: 2534 | H162: 2534
B163: Банк ГПБ (АО) | C163: Банк ГПБ (АО) | D163: Банк ГПБ (АО) | E163: Банк ГПБ (АО) | F163: Банк ГПБ (АО) | G163: 2394 | H163: 2394
B166: Ведущие операторы рынка – объем клиентских операций | H166: Таблица 3
B167: (по стоимостному объему сделок, заключенных в интересах клиентов за месяц)
B168: Наименование Участника торгов | G168: Торговый оборот, руб.
B169: ФГ "ОТКРЫТИЕ" | C169: ФГ "ОТКРЫТИЕ" | D169: ФГ "ОТКРЫТИЕ" | E169: ФГ "ОТКРЫТИЕ" | F169: ФГ "ОТКРЫТИЕ" | G169: 2.434983314e+12 | H169: 2.434983314e+12
B170: ООО "БК РЕГИОН" | C170: ООО "БК РЕГИОН" | D170: ООО "БК РЕГИОН" | E170: ООО "БК РЕГИОН" | F170: ООО "БК РЕГИОН" | G170: 2.197499385e+12 | H170: 2.197499385e+12
B171: ФГ БКС | C171: ФГ БКС | D171: ФГ БКС | E171: ФГ БКС | F171: ФГ БКС | G171: 2.012438096e+12 | H171: 2.012438096e+12
B172: ООО "Ренессанс Брокер" | C172: ООО "Ренессанс Брокер" | D172: ООО "Ренессанс Брокер" | E172: ООО "Ренессанс Брокер" | F172: ООО "Ренессанс Брокер" | G172: 1.228923015e+12 | H172: 1.228923015e+12
B173: ООО "УНИВЕР Капитал" | C173: ООО "УНИВЕР Капитал" | D173: ООО "УНИВЕР Капитал" | E173: ООО "УНИВЕР Капитал" | F173: ООО "УНИВЕР Капитал" | G173: 8.918950655e+11 | H173: 8.918950655e+11
B174: ООО "АТОН" | C174: ООО "АТОН" | D174: ООО "АТОН" | E174: ООО "АТОН" | F174: ООО "АТОН" | G174: 5.279363373e+11 | H174: 5.279363373e+11
B175: АО "ФИНАМ" | C175: АО "ФИНАМ" | D175: АО "ФИНАМ" | E175: АО "ФИНАМ" | F175: АО "ФИНАМ" | G175: 4.84749342e+11 | H175: 4.84749342e+11
B176: ООО "РОНИН" | C176: ООО "РОНИН" | D176: ООО "РОНИН" | E176: ООО "РОНИН" | F176: ООО "РОНИН" | G176: 4.204914958e+11 | H176: 4.204914958e+11
B177: ПАО "Промсвязьбанк" | C177: ПАО "Промсвязьбанк" | D177: ПАО "Промсвязьбанк" | E177: ПАО "Промсвязьбанк" | F177: ПАО "Промсвязьбанк" | G177: 4.202912241e+11 | H177: 4.202912241e+11
B178: ПАО "Совкомбанк" | C178: ПАО "Совкомбанк" | D178: ПАО "Совкомбанк" | E178: ПАО "Совкомбанк" | F178: ПАО "Совкомбанк" | G178: 4.200653127e+11 | H178: 4.200653127e+11

Sheet August
B2: Клиенты Участников торгов фондового рынка Московской Биржи
B3: 2017-08-31
B6: Динамика количества клиентов за | C6: =B3 -> 2017-08-31
B10: Количество зарегистрированных клиентов в Системе торгов (по состоянию на последний день месяца): | H10: Таблица 1
B11: Группы клиентов | E11: =EDATE(B3,-1) -> 2017-07-31 | F11: =B3 -> 2017-08-31 | G11: Изменение (ед.) | H11: Изменение (%)
B12: Физические лица | E12: 1678796 | F12: 1726066 | G12: =F12-E12 -> 47270 | H12: =F12/E12-1 -> 0.02815708401
B13: Юридические лица | E13: 30807 | F13: 31113 | G13: =F13-E13 -> 306 | H13: 0.009932807479
B14: Иностранные лица | E14: 14869 | F14: 15652 | G14: 783 | H14: 0.05265989643
B15: Иностранные физические лица | E15: 7322 | F15: 7610 | G15: 288 | H15: 0.03933351543
B16: Иностранные юридические лица | E16: 7547 | F16: 8042 | G16: 495 | H16: 0.06558897575
B17: Клиенты, передавшие свои средства в ДУ | E17: 32267 | F17: 41623 | G17: 9356 | H17: 0.2899556823
B18: Всего | E18: 1756739 | F18: 1814454 | G18: 57715 | H18: 0.03285348592
B21: Количество уникальных клиентов в Системе торгов (по состоянию на последний день месяца): | H21: Таблица 2
B22: Группы клиентов | E22: =EDATE(B3,-1) -> 2017-07-31 | F22: =F11 -> 2017-08-31 | G22: Изменение (ед.) | H22: Изменение (%)
B23: Физические лица | E23: 1207926 | F23: 1224837 | G23: =F23-E23 -> 16911 | H23: =F23/E23-1 -> 0.0140000298
B24: Юридические лица | E24: 18578 | F24: 18539 | G24: =F24-E24 -> -39 | H24: =F24/E24-1 -> -0.002099257186
B25: Иностранные лица | E25: 9901 | F25: 10116 | G25: 215 | H25: 0.02171497829
B26: Иностранные физические лица | E26: 6597 | F26: 6814 | G26: 217 | H26: 0.03289373958
B27: Иностранные юридические лица | E27: 3304 | F27: 3302 | G27: -2 | H27: -0.0006053268765
B28: Клиенты, передавшие свои средства в ДУ | E28: 16881 | F28: 18110 | G28: 1229 | H28: 0.07280374385
B29: Всего | E29: 1253286 | F29: 1271602 | G29: 18316 | H29: 0.01461438171
B32: Количество активных клиентов в Системе торгов (совершивших в течение месяца хотя бы одну сделку): | H32: Таблица 3
B33: Группы клиентов | E33: =EDATE(B3,-1) -> 2017-07-31 | F33: =F11 -> 2017-08-31 | G33: Изменение (ед.) | H33: Изменение (%)
B34: Физические лица | E34: 89443 | F34: 98846 | G34: =F34-E34 -> 9403 | H34: =F34/E34-1 -> 0.1051284058
B35: Юридические лица | E35: 1020 | F35: 1092 | G35: 72 | H35: 0.07058823529
B36: Иностранные лица | E36: 716 | F36: 776 | G36: 60 | H36: 0.08379888268
B37: Иностранные физические лица | E37: 443 | F37: 494 | G37: 51 | H37: 0.1151241535
B38: Иностранные юридические лица | E38: 273 | F38: 282 | G38: 9 | H38: 0.03296703297
B39: Клиенты, передавшие свои средства в ДУ | E39: 4917 | F39: 3927 | G39: -990 | H39: -0.2013422819
B40: Всего | E40: 96096 | F40: 104641 | G40: 8545 | H40: 0.08892149517
B44: Изменение количества уникальных клиентов - ретроспективные данные
B48: Количество уникальных клиентов в Системе торгов (по состоянию на последний день месяца) (ежегодная статистика): | H48: Таблица 1
B49: Группы клиентов | E49: 2012-12-31 | F49: 2013-12-31 | G49: 2014-12-31 | H49: 2015-12-31 | I49: 2016-12-31
B50: Физические лица | E50: 805549 | F50: 881844 | G50: 944559 | H50: 1006751 | I50: 1102966
B51: Юридические лица | E51: 17821 | F51: 19539 | G51: 20178 | H51: 20753 | I51: 18622
B52: Иностранные лица | E52: 5876 | F52: 6957 | G52: 7486 | H52: 8729 | I52: 9215
B53: Клиенты, передавшие свои средства в ДУ | E53: 5261 | F53: 5182 | G53: 5142 | H53: 3836 | I53: 10694
B54: Всего | E54: 834507 | F54: 913522 | G54: 977365 | H54: 1040069 | I54: 1141497
B82: Количество уникальных клиентов в Системе торгов (по состоянию на последний день месяца) (за последние 6 месяцев): | H82: Таблица 2
B83: Группы клиентов | C83: =EDATE(D83,-1) -> 2017-03-30 | D83: =EDATE(E83,-1) -> 2017-04-30 | E83: =EDATE(F83,-1) -> 2017-05-30 | F83: =EDATE(G83,-1) -> 2017-06-30 | G83: =EDATE(H83,-1) -> 2017-07-31 | H83: =EDATE(E11,1) -> 2017-08-31
B84: Физические лица | C84: 1143968 | D84: 1156796 | E84: 1178131 | F84: 1194087 | G84: 1207926 | H84: 1224837
B85: Юридические лица | C85: 18496 | D85: 18504 | E85: 18473 | F85: 18588 | G85: 18578 | H85: 18539
B86: Иностранные лица | C86: 9908 | D86: 9540 | E86: 9591 | F86: 9805 | G86: 9901 | H86: 10116
B87: Клиенты, передавшие свои средства в ДУ | C87: 14098 | D87: 14622 | E87: 15082 | F87: 15779 | G87: 16881 | H87: 18110
B88: Всего | C88: 1186470 | D88: 1199462 | E88: 1221277 | F88: 1238259 | G88: 1253286 | H88: 1271602
B124: Дополнительные показатели за | C124: =B3 -> 2017-08-31
H127: Таблица 1
B128: Участники торгов | G128: Абсолютные показатели
B129: Количество Участников торгов, имеющих активных клиентов | G129: 329
B133: Списки ведущих операторов фондового рынка - клиенты Участников торгов за | F133: =C6 -> 2017-08-31
B136: Ведущие операторы рынка – число зарегистрированных клиентов | H136: Таблица 1
B137: (по общему количеству уникальных клиентов всех типов, зарегистрированных в системе торгов биржи, в том числе в течение месяца)
B138: Наименование Участника торгов | G138: Количество клиентов
B139: ВТБ 24 (ПАО) | C139: ВТБ 24 (ПАО) | D139: ВТБ 24 (ПАО) | E139: ВТБ 24 (ПАО) | F139: ВТБ 24 (ПАО) | G139: 266861 | H139: 266861
B140: ФГ БКС | C140: ФГ БКС | D140: ФГ БКС | E140: ФГ БКС | F140: ФГ БКС | G140: 238365 | H140: 238365
B141: Сбербанк | C141: Сбербанк | D141: Сбербанк | E141: Сбербанк | F141: Сбербанк | G141: 225449 | H141: 225449
B142: АО "ФИНАМ" | C142: АО "ФИНАМ" | D142: АО "ФИНАМ" | E142: АО "ФИНАМ" | F142: АО "ФИНАМ" | G142: 173579 | H142: 173579
B143: ФГ "ОТКРЫТИЕ" | C143: ФГ "ОТКРЫТИЕ" | D143: ФГ "ОТКРЫТИЕ" | E143: ФГ "ОТКРЫТИЕ" | F143: ФГ "ОТКРЫТИЕ" | G143: 110353 | H143: 110353
B144: АО "АЛЬФА-БАНК" | C144: АО "АЛЬФА-БАНК" | D144: АО "АЛЬФА-БАНК" | E144: АО "АЛЬФА-БАНК" | F144: АО "АЛЬФА-БАНК" | G144: 61379 | H144: 61379
B145: ООО "АТОН" | C145: ООО "АТОН" | D145: ООО "АТОН" | E145: ООО "АТОН" | F145: ООО "АТОН" | G145: 51596 | H145: 51596
B146: АЛОР БРОКЕР | C146: АЛОР БРОКЕР | D146: АЛОР БРОКЕР | E146: АЛОР БРОКЕР | F146: АЛОР БРОКЕР | G146: 34103 | H146: 34103
B147: КИТ Финанс (ПАО) | C147: КИТ Финанс (ПАО) | D147: КИТ Финанс (ПАО) | E147: КИТ Финанс (ПАО) | F147: КИТ Финанс (ПАО) | G147: 22611 | H147: 22611
B148: Банк ГПБ (АО) | C148: Банк ГПБ (АО) | D148: Банк ГПБ (АО) | E148: Банк ГПБ (АО) | F148: Банк ГПБ (АО) | G148: 20543 | H148: 20543
B151: Ведущие операторы рынка – число активных клиентов | H151: Таблица 2
B152: (по количеству уникальных клиентов, совершивших хотя бы одну сделку за месяц)
B153: Наименование Участника торгов | G153: Количество клиентов
B154: АО "ФИНАМ" | C154: АО "ФИНАМ" | D154: АО "ФИНАМ" | E154: АО "ФИНАМ" | F154: АО "ФИНАМ" | G154: 17326 | H154: 17326
B155: ФГ БКС | C155: ФГ БКС | D155: ФГ БКС | E155: ФГ БКС | F155: ФГ БКС | G155: 16740 | H155: 16740
B156: Сбербанк | C156: Сбербанк | D156: Сбербанк | E156: Сбербанк | F156: Сбербанк | G156: 14514 | H156: 14514
B157: ФГ "ОТКРЫТИЕ" | C157: ФГ "ОТКРЫТИЕ" | D157: ФГ "ОТКРЫТИЕ" | E157: ФГ "ОТКРЫТИЕ" | F157: ФГ "ОТКРЫТИЕ" | G157: 14436 | H157: 14436
B158: ВТБ 24 (ПАО) | C158: ВТБ 24 (ПАО) | D158: ВТБ 24 (ПАО) | E158: ВТБ 24 (ПАО) | F158: ВТБ 24 (ПАО) | G158: 11627 | H158: 11627
B159: АО "АЛЬФА-БАНК" | C159: АО "АЛЬФА-БАНК" | D159: АО "АЛЬФА-БАНК" | E159: АО "АЛЬФА-БАНК" | F159: АО "АЛЬФА-БАНК" | G159: 4701 | H159: 4701
B160: ООО УК "Альфа-Капитал" | C160: ООО УК "Альфа-Капитал" | D160: ООО УК "Альфа-Капитал" | E160: ООО УК "Альфа-Капитал" | F160: ООО УК "Альфа-Капитал" | G160: 3434 | H160: 3434
B161: ПАО "Промсвязьбанк" | C161: ПАО "Промсвязьбанк" | D161: ПАО "Промсвязьбанк" | E161: ПАО "Промсвязьбанк" | F161: ПАО "Промсвязьбанк" | G161: 3282 | H161: 3282
B162: ООО ФК "РГС Инвестиции" | C162: ООО ФК "РГС Инвестиции" | D162: ООО ФК "РГС Инвестиции" | E162: ООО ФК "РГС Инвестиции" | F162: ООО ФК "РГС Инвестиции" | G162: 3099 | H162: 3099
B163: ООО "АТОН" | C163: ООО "АТОН" | D163: ООО "АТОН" | E163: ООО "АТОН" | F163: ООО "АТОН" | G163: 2843 | H163: 2843
B166: Ведущие операторы рынка – объем клиентских операций | H166: Таблица 3
B167: (по стоимостному объему сделок, заключенных в интересах клиентов за месяц)
B168: Наименование Участника торгов | G168: Торговый оборот, руб.
B169: ФГ "ОТКРЫТИЕ" | C169: ФГ "ОТКРЫТИЕ" | D169: ФГ "ОТКРЫТИЕ" | E169: ФГ "ОТКРЫТИЕ" | F169: ФГ "ОТКРЫТИЕ" | G169: 2.667126765e+12 | H169: 2.667126765e+12
B170: ООО "БК РЕГИОН" | C170: ООО "БК РЕГИОН" | D170: ООО "БК РЕГИОН" | E170: ООО "БК РЕГИОН" | F170: ООО "БК РЕГИОН" | G170: 2.574656642e+12 | H170: 2.574656642e+12
B171: ФГ БКС | C171: ФГ БКС | D171: ФГ БКС | E171: ФГ БКС | F171: ФГ БКС | G171: 1.766231504e+12 | H171: 1.766231504e+12
B172: ООО "УНИВЕР Капитал" | C172: ООО "УНИВЕР Капитал" | D172: ООО "УНИВЕР Капитал" | E172: ООО "УНИВЕР Капитал" | F172: ООО "УНИВЕР Капитал" | G172: 1.46570114e+12 | H172: 1.46570114e+12
B173: ООО "Ренессанс Брокер" | C173: ООО "Ренессанс Брокер" | D173: ООО "Ренессанс Брокер" | E173: ООО "Ренессанс Брокер" | F173: ООО "Ренессанс Брокер" | G173: 1.272173153e+12 | H173: 1.272173153e+12
B174: ПАО "Промсвязьбанк" | C174: ПАО "Промсвязьбанк" | D174: ПАО "Промсвязьбанк" | E174: ПАО "Промсвязьбанк" | F174: ПАО "Промсвязьбанк" | G174: 6.109886124e+11 | H174: 6.109886124e+11
B175: АО "ФИНАМ" | C175: АО "ФИНАМ" | D175: АО "ФИНАМ" | E175: АО "ФИНАМ" | F175: АО "ФИНАМ" | G175: 5.244772912e+11 | H175: 5.244772912e+11
B176: ООО "РОНИН" | C176: ООО "РОНИН" | D176: ООО "РОНИН" | E176: ООО "РОНИН" | F176: ООО "РОНИН" | G176: 5.214799792e+11 | H176: 5.214799792e+11
B177: Сбербанк | C177: Сбербанк | D177: Сбербанк | E177: Сбербанк | F177: Сбербанк | G177: 4.943241003e+11 | H177: 4.943241003e+11
B178: ПАО "Совкомбанк" | C178: ПАО "Совкомбанк" | D178: ПАО "Совкомбанк" | E178: ПАО "Совкомбанк" | F178: ПАО "Совкомбанк" | G178: 4.260999051e+11 | H178: 4.260999051e+11

Sheet September
B2: Клиенты Участников торгов фондового рынка Московской Биржи
B3: 2017-09-30
B6: Динамика количества клиентов за | C6: =B3 -> 2017-09-30
B10: Количество зарегистрированных клиентов в Системе торгов (по состоянию на последний день месяца): | H10: Таблица 1
B11: Группы клиентов | E11: =EDATE(B3,-1) -> 2017-08-30 | F11: =B3 -> 2017-09-30 | G11: Изменение (ед.) | H11: Изменение (%)
B12: Физические лица | E12: 1726066 | F12: 1882001 | G12: =F12-E12 -> 155935 | H12: =F12/E12-1 -> 0.09034127316
B13: Юридические лица | E13: 31113 | F13: 34063 | G13: =F13-E13 -> 2950 | H13: 0.09481567191
B14: Иностранные лица | E14: 15652 | F14: 17841 | G14: 2189 | H14: 0.1398543317
B15: Иностранные физические лица | E15: 7610 | F15: 8056 | G15: 446 | H15: 0.05860709593
B16: Иностранные юридические лица | E16: 8042 | F16: 9785 | G16: 1743 | H16: 0.2167371301
B17: Клиенты, передавшие свои средства в ДУ | E17: 41623 | F17: 35687 | G17: -5936 | H17: -0.1426134589
B18: Всего | E18: 1814454 | F18: 1969592 | G18: 155138 | H18: 0.08550120312
B21: Количество уникальных клиентов в Системе торгов (по состоянию на последний день месяца): | H21: Таблица 2
B22: Группы клиентов | E22: =EDATE(B3,-1) -> 2017-08-30 | F22: =F11 -> 2017-09-30 | G22: Изменение (ед.) | H22: Изменение (%)
B23: Физические лица | E23: 1224837 | F23: 1253028 | G23: =F23-E23 -> 28191 | H23: =F23/E23-1 -> 0.02301612378
B24: Юридические лица | E24: 18539 | F24: 18550 | G24: =F24-E24 -> 11 | H24: =F24/E24-1 -> 0.0005933437618
B25: Иностранные лица | E25: 10116 | F25: 10474 | G25: 358 | H25: 0.03538948201
B26: Иностранные физические лица | E26: 6814 | F26: 7084 | G26: 270 | H26: 0.03962430291
B27: Иностранные юридические лица | E27: 3302 | F27: 3390 | G27: 88 | H27: 0.02665051484
B28: Клиенты, передавшие свои средства в ДУ | E28: 18110 | F28: 18940 | G28: 830 | H28: 0.04583103258
B29: Всего | E29: 1271602 | F29: 1300992 | G29: 29390 | H29: 0.02311257768
B32: Количество активных клиентов в Системе торгов (совершивших в течение месяца хотя бы одну сделку): | H32: Таблица 3
B33: Группы клиентов | E33: =EDATE(B3,-1) -> 2017-08-30 | F33: =F11 -> 2017-09-30 | G33: Изменение (ед.) | H33: Изменение (%)
B34: Физические лица | E34: 98846 | F34: 92530 | G34: =F34-E34 -> -6316 | H34: =F34/E34-1 -> -0.06389737572
B35: Юридические лица | E35: 1092 | F35: 1072 | G35: -20 | H35: -0.01831501832
B36: Иностранные лица | E36: 776 | F36: 773 | G36: -3 | H36: -0.003865979381
B37: Иностранные физические лица | E37: 494 | F37: 471 | G37: -23 | H37: -0.04655870445
B38: Иностранные юридические лица | E38: 282 | F38: 302 | G38: 20 | H38: 0.07092198582
B39: Клиенты, передавшие свои средства в ДУ | E39: 3927 | F39: 8305 | G39: 4378 | H39: 1.114845938
B40: Всего | E40: 104641 | F40: 102680 | G40: -1961 | H40: -0.01874026433
B44: Изменение количества уникальных клиентов - ретроспективные данные
B48: Количество уникальных клиентов в Системе торгов (по состоянию на последний день месяца) (ежегодная статистика): | H48: Таблица 1
B49: Группы клиентов | E49: 2012-12-31 | F49: 2013-12-31 | G49: 2014-12-31 | H49: 2015-12-31 | I49: 2016-12-31
B50: Физические лица | E50: 805549 | F50: 881844 | G50: 944559 | H50: 1006751 | I50: 1102966
B51: Юридические лица | E51: 17821 | F51: 19539 | G51: 20178 | H51: 20753 | I51: 18622
B52: Иностранные лица | E52: 5876 | F52: 6957 | G52: 7486 | H52: 8729 | I52: 9215
B53: Клиенты, передавшие свои средства в ДУ | E53: 5261 | F53: 5182 | G53: 5142 | H53: 3836 | I53: 10694
B54: Всего | E54: 834507 | F54: 913522 | G54: 977365 | H54: 1040069 | I54: 1141497
B82: Количество уникальных клиентов в Системе торгов (по состоянию на последний день месяца) (за последние 6 месяцев): | H82: Таблица 2
B83: Группы клиентов | C83: =EDATE(D83,-1) -> 2017-04-30 | D83: =EDATE(E83,-1) -> 2017-05-30 | E83: =EDATE(F83,-1) -> 2017-06-30 | F83: =EDATE(G83,-1) -> 2017-07-30 | G83: =EDATE(H83,-1) -> 2017-08-30 | H83: =EDATE(E11,1) -> 2017-09-30
B84: Физические лица | C84: 1156796 | D84: 1178131 | E84: 1194087 | F84: 1207926 | G84: 1224837 | H84: 1253028
B85: Юридические лица | C85: 18504 | D85: 18473 | E85: 18588 | F85: 18578 | G85: 18539 | H85: 18550
B86: Иностранные лица | C86: 9540 | D86: 9591 | E86: 9805 | F86: 9901 | G86: 10116 | H86: 10474
B87: Клиенты, передавшие свои средства в ДУ | C87: 14622 | D87: 15082 | E87: 15779 | F87: 16881 | G87: 18110 | H87: 18940
B88: Всего | C88: 1199462 | D88: 1221277 | E88: 1238259 | F88: 1253286 | G88: 1271602 | H88: 1300992
B124: Дополнительные показатели за | C124: =B3 -> 2017-09-30
H127: Таблица 1
B128: Участники торгов | G128: Абсолютные показатели
B129: Количество Участников торгов, имеющих активных клиентов | G129: 321
B133: Списки ведущих операторов фондового рынка - клиенты Участников торгов за | F133: =C6 -> 2017-09-30
B136: Ведущие операторы рынка – число зарегистрированных клиентов | H136: Таблица 1
B137: (по общему количеству уникальных клиентов всех типов, зарегистрированных в системе торгов биржи, в том числе в течение месяца)
B138: Наименование Участника торгов | G138: Количество клиентов
B139: ВТБ 24 (ПАО) | C139: ВТБ 24 (ПАО) | D139: ВТБ 24 (ПАО) | E139: ВТБ 24 (ПАО) | F139: ВТБ 24 (ПАО) | G139: 268483 | H139: 268483
B140: ФГ БКС | C140: ФГ БКС | D140: ФГ БКС | E140: ФГ БКС | F140: ФГ БКС | G140: 245533 | H140: 245533
B141: Сбербанк | C141: Сбербанк | D141: Сбербанк | E141: Сбербанк | F141: Сбербанк | G141: 239676 | H141: 239676
B142: АО "ФИНАМ" | C142: АО "ФИНАМ" | D142: АО "ФИНАМ" | E142: АО "ФИНАМ" | F142: АО "ФИНАМ" | G142: 175437 | H142: 175437
B143: ФГ "ОТКРЫТИЕ" | C143: ФГ "ОТКРЫТИЕ" | D143: ФГ "ОТКРЫТИЕ" | E143: ФГ "ОТКРЫТИЕ" | F143: ФГ "ОТКРЫТИЕ" | G143: 114379 | H143: 114379
B144: АО "АЛЬФА-БАНК" | C144: АО "АЛЬФА-БАНК" | D144: АО "АЛЬФА-БАНК" | E144: АО "АЛЬФА-БАНК" | F144: АО "АЛЬФА-БАНК" | G144: 61311 | H144: 61311
B145: ООО "АТОН" | C145: ООО "АТОН" | D145: ООО "АТОН" | E145: ООО "АТОН" | F145: ООО "АТОН" | G145: 51850 | H145: 51850
B146: АЛОР БРОКЕР | C146: АЛОР БРОКЕР | D146: АЛОР БРОКЕР | E146: АЛОР БРОКЕР | F146: АЛОР БРОКЕР | G146: 34182 | H146: 34182
B147: КИТ Финанс (ПАО) | C147: КИТ Финанс (ПАО) | D147: КИТ Финанс (ПАО) | E147: КИТ Финанс (ПАО) | F147: КИТ Финанс (ПАО) | G147: 22711 | H147: 22711
B148: Банк ГПБ (АО) | C148: Банк ГПБ (АО) | D148: Банк ГПБ (АО) | E148: Банк ГПБ (АО) | F148: Банк ГПБ (АО) | G148: 20730 | H148: 20730
B151: Ведущие операторы рынка – число активных клиентов | H151: Таблица 2
B152: (по количеству уникальных клиентов, совершивших хотя бы одну сделку за месяц)
B153: Наименование Участника торгов | G153: Количество клиентов
B154: АО "ФИНАМ" | C154: АО "ФИНАМ" | D154: АО "ФИНАМ" | E154: АО "ФИНАМ" | F154: АО "ФИНАМ" | G154: 17308 | H154: 17308
B155: ФГ БКС | C155: ФГ БКС | D155: ФГ БКС | E155: ФГ БКС | F155: ФГ БКС | G155: 16631 | H155: 16631
B156: Сбербанк | C156: Сбербанк | D156: Сбербанк | E156: Сбербанк | F156: Сбербанк | G156: 13908 | H156: 13908
B157: ФГ "ОТКРЫТИЕ" | C157: ФГ "ОТКРЫТИЕ" | D157: ФГ "ОТКРЫТИЕ" | E157: ФГ "ОТКРЫТИЕ" | F157: ФГ "ОТКРЫТИЕ" | G157: 12972 | H157: 12972
B158: ВТБ 24 (ПАО) | C158: ВТБ 24 (ПАО) | D158: ВТБ 24 (ПАО) | E158: ВТБ 24 (ПАО) | F158: ВТБ 24 (ПАО) | G158: 11030 | H158: 11030
B159: ООО УК "Альфа-Капитал" | C159: ООО УК "Альфа-Капитал" | D159: ООО УК "Альфа-Капитал" | E159: ООО УК "Альфа-Капитал" | F159: ООО УК "Альфа-Капитал" | G159: 7837 | H159: 7837
B160: АО "АЛЬФА-БАНК" | C160: АО "АЛЬФА-БАНК" | D160: АО "АЛЬФА-БАНК" | E160: АО "АЛЬФА-БАНК" | F160: АО "АЛЬФА-БАНК" | G160: 4528 | H160: 4528
B161: ПАО "Промсвязьбанк" | C161: ПАО "Промсвязьбанк" | D161: ПАО "Промсвязьбанк" | E161: ПАО "Промсвязьбанк" | F161: ПАО "Промсвязьбанк" | G161: 3081 | H161: 3081
B162: ООО "АТОН" | C162: ООО "АТОН" | D162: ООО "АТОН" | E162: ООО "АТОН" | F162: ООО "АТОН" | G162: 2755 | H162: 2755
B163: Банк ГПБ (АО) | C163: Банк ГПБ (АО) | D163: Банк ГПБ (АО) | E163: Банк ГПБ (АО) | F163: Банк ГПБ (АО) | G163: 2570 | H163: 2570
B166: Ведущие операторы рынка – объем клиентских операций | H166: Таблица 3
B167: (по стоимостному объему сделок, заключенных в интересах клиентов за месяц)
B168: Наименование Участника торгов | G168: Торговый оборот, руб.
B169: ООО "БК РЕГИОН" | C169: ООО "БК РЕГИОН" | D169: ООО "БК РЕГИОН" | E169: ООО "БК РЕГИОН" | F169: ООО "БК РЕГИОН" | G169: 3.214113562e+12 | H169: 3.214113562e+12
B170: ФГ "ОТКРЫТИЕ" | C170: ФГ "ОТКРЫТИЕ" | D170: ФГ "ОТКРЫТИЕ" | E170: ФГ "ОТКРЫТИЕ" | F170: ФГ "ОТКРЫТИЕ" | G170: 1.979505937e+12 | H170: 1.979505937e+12
B171: ФГ БКС | C171: ФГ БКС | D171: ФГ БКС | E171: ФГ БКС | F171: ФГ БКС | G171: 1.749642733e+12 | H171: 1.749642733e+12
B172: ООО "УНИВЕР Капитал" | C172: ООО "УНИВЕР Капитал" | D172: ООО "УНИВЕР Капитал" | E172: ООО "УНИВЕР Капитал" | F172: ООО "УНИВЕР Капитал" | G172: 1.487270313e+12 | H172: 1.487270313e+12
B173: ООО "Ренессанс Брокер" | C173: ООО "Ренессанс Брокер" | D173: ООО "Ренессанс Брокер" | E173: ООО "Ренессанс Брокер" | F173: ООО "Ренессанс Брокер" | G173: 1.024016096e+12 | H173: 1.024016096e+12
B174: ПАО "Промсвязьбанк" | C174: ПАО "Промсвязьбанк" | D174: ПАО "Промсвязьбанк" | E174: ПАО "Промсвязьбанк" | F174: ПАО "Промсвязьбанк" | G174: 8.504478248e+11 | H174: 8.504478248e+11
B175: Сбербанк | C175: Сбербанк | D175: Сбербанк | E175: Сбербанк | F175: Сбербанк | G175: 6.191499844e+11 | H175: 6.191499844e+11
B176: ООО "ИК ВЕЛЕС Капитал" | C176: ООО "ИК ВЕЛЕС Капитал" | D176: ООО "ИК ВЕЛЕС Капитал" | E176: ООО "ИК ВЕЛЕС Капитал" | F176: ООО "ИК ВЕЛЕС Капитал" | G176: 4.9625379e+11 | H176: 4.9625379e+11
B177: АО "ФИНАМ" | C177: АО "ФИНАМ" | D177: АО "ФИНАМ" | E177: АО "ФИНАМ" | F177: АО "ФИНАМ" | G177: 4.845341968e+11 | H177: 4.845341968e+11
B178: ООО "РОНИН" | C178: ООО "РОНИН" | D178: ООО "РОНИН" | E178: ООО "РОНИН" | F178: ООО "РОНИН" | G178: 4.348334218e+11 | H178: 4.348334218e+11

Sheet October
B2: Клиенты Участников торгов фондового рынка Московской Биржи
B3: 2017-10-31
B6: Динамика количества клиентов за | C6: =B3 -> 2017-10-31
B10: Количество зарегистрированных клиентов в Системе торгов (по состоянию на последний день месяца): | H10: Таблица 1
B11: Группы клиентов | E11: =EDATE(B3,-1) -> 2017-09-30 | F11: =B3 -> 2017-10-31 | G11: Изменение (ед.) | H11: Изменение (%)
B12: Физические лица | E12: 1882001 | F12: 1788146 | G12: =F12-E12 -> -93855 | H12: =F12/E12-1 -> -0.04986979284
B13: Юридические лица | E13: 34063 | F13: 29007 | G13: =F13-E13 -> -5056 | H13: -0.1484308487
B14: Иностранные лица | E14: 17841 | F14: 15601 | G14: -2240 | H14: -0.1255535004
B15: Иностранные физические лица | E15: 8056 | F15: 7891 | G15: -165 | H15: -0.0204816286
B16: Иностранные юридические лица | E16: 9785 | F16: 7710 | G16: -2075 | H16: -0.2120592744
B17: Клиенты, передавшие свои средства в ДУ | E17: 35687 | F17: 37053 | G17: 1366 | H17: 0.03827724381
B18: Всего | E18: 1969592 | F18: 1869807 | G18: -99785 | H18: -0.05066277686
B21: Количество уникальных клиентов в Системе торгов (по состоянию на последний день месяца): | H21: Таблица 2
B22: Группы клиентов | E22: =EDATE(B3,-1) -> 2017-09-30 | F22: =F11 -> 2017-10-31 | G22: Изменение (ед.) | H22: Изменение (%)
B23: Физические лица | E23: 1253028 | F23: 1265256 | G23: =F23-E23 -> 12228 | H23: =F23/E23-1 -> 0.009758760379
B24: Юридические лица | E24: 18550 | F24: 17992 | G24: =F24-E24 -> -558 | H24: =F24/E24-1 -> -0.03008086253
B25: Иностранные лица | E25: 10474 | F25: 10117 | G25: -357 | H25: -0.03408439947
B26: Иностранные физические лица | E26: 7084 | F26: 7006 | G26: -78 | H26: -0.0110107284
B27: Иностранные юридические лица | E27: 3390 | F27: 3111 | G27: -279 | H27: -0.08230088496
B28: Клиенты, передавшие свои средства в ДУ | E28: 18940 | F28: 20071 | G28: 1131 | H28: 0.05971488912
B29: Всего | E29: 1300992 | F29: 1313436 | G29: 12444 | H29: 0.009565008855
B32: Количество активных клиентов в Системе торгов (совершивших в течение месяца хотя бы одну сделку): | H32: Таблица 3
B33: Группы клиентов | E33: =EDATE(B3,-1) -> 2017-09-30 | F33: =F11 -> 2017-10-31 | G33: Изменение (ед.) | H33: Изменение (%)
B34: Физические лица | E34: 92530 | F34: 98731 | G34: =F34-E34 -> 6201 | H34: =F34/E34-1 -> 0.06701610289
B35: Юридические лица | E35: 1072 | F35: 1112 | G35: 40 | H35: 0.03731343284
B36: Иностранные лица | E36: 773 | F36: 753 | G36: -20 | H36: -0.02587322122
B37: Иностранные физические лица | E37: 471 | F37: 494 | G37: 23 | H37: 0.04883227176
B38: Иностранные юридические лица | E38: 302 | F38: 259 | G38: -43 | H38: -0.142384106
B39: Клиенты, передавшие свои средства в ДУ | E39: 8305 | F39: 9694 | G39: 1389 | H39: 0.1672486454
B40: Всего | E40: 102680 | F40: 110290 | G40: 7610 | H40: 0.07411375146
B44: Изменение количества уникальных клиентов - ретроспективные данные
B48: Количество уникальных клиентов в Системе торгов (по состоянию на последний день месяца) (ежегодная статистика): | H48: Таблица 1
B49: Группы клиентов | E49: 2012-12-31 | F49: 2013-12-31 | G49: 2014-12-31 | H49: 2015-12-31 | I49: 2016-12-31
B50: Физические лица | E50: 805549 | F50: 881844 | G50: 944559 | H50: 1006751 | I50: 1102966
B51: Юридические лица | E51: 17821 | F51: 19539 | G51: 20178 | H51: 20753 | I51: 18622
B52: Иностранные лица | E52: 5876 | F52: 6957 | G52: 7486 | H52: 8729 | I52: 9215
B53: Клиенты, передавшие свои средства в ДУ | E53: 5261 | F53: 5182 | G53: 5142 | H53: 3836 | I53: 10694
B54: Всего | E54: 834507 | F54: 913522 | G54: 977365 | H54: 1040069 | I54: 1141497
B82: Количество уникальных клиентов в Системе торгов (по состоянию на последний день месяца) (за последние 6 месяцев): | H82: Таблица 2
B83: Группы клиентов | C83: =EDATE(D83,-1) -> 2017-05-30 | D83: =EDATE(E83,-1) -> 2017-06-30 | E83: =EDATE(F83,-1) -> 2017-07-30 | F83: =EDATE(G83,-1) -> 2017-08-30 | G83: =EDATE(H83,-1) -> 2017-09-30 | H83: =EDATE(E11,1) -> 2017-10-30
B84: Физические лица | C84: 1178131 | D84: 1194087 | E84: 1207926 | F84: 1224837 | G84: 1253028 | H84: 1265256
B85: Юридические лица | C85: 18473 | D85: 18588 | E85: 18578 | F85: 18539 | G85: 18550 | H85: 17992
B86: Иностранные лица | C86: 9591 | D86: 9805 | E86: 9901 | F86: 10116 | G86: 10474 | H86: 10117
B87: Клиенты, передавшие свои средства в ДУ | C87: 15082 | D87: 15779 | E87: 16881 | F87: 18110 | G87: 18940 | H87: 20071
B88: Всего | C88: 1221277 | D88: 1238259 | E88: 1253286 | F88: 1271602 | G88: 1300992 | H88: 1313436
B124: Дополнительные показатели за | C124: =B3 -> 2017-10-31
H127: Таблица 1
B128: Участники торгов | G128: Абсолютные показатели
B129: Количество Участников торгов, имеющих активных клиентов | G129: 320
B133: Списки ведущих операторов фондового рынка - клиенты Участников торгов за | F133: =C6 -> 2017-10-31
B136: Ведущие операторы рынка – число зарегистрированных клиентов | H136: Таблица 1
B137: (по общему количеству уникальных клиентов всех типов, зарегистрированных в системе торгов биржи, в том числе в течение месяца)
B138: Наименование Участника торгов | G138: Количество клиентов
B139: ВТБ 24 (ПАО) | C139: ВТБ 24 (ПАО) | D139: ВТБ 24 (ПАО) | E139: ВТБ 24 (ПАО) | F139: ВТБ 24 (ПАО) | G139: 270085 | H139: 270085
B140: ФГ БКС | C140: ФГ БКС | D140: ФГ БКС | E140: ФГ БКС | F140: ФГ БКС | G140: 252734 | H140: 252734
B141: Сбербанк | C141: Сбербанк | D141: Сбербанк | E141: Сбербанк | F141: Сбербанк | G141: 246022 | H141: 246022
B142: АО "ФИНАМ" | C142: АО "ФИНАМ" | D142: АО "ФИНАМ" | E142: АО "ФИНАМ" | F142: АО "ФИНАМ" | G142: 177535 | H142: 177535
B143: ФГ "ОТКРЫТИЕ" | C143: ФГ "ОТКРЫТИЕ" | D143: ФГ "ОТКРЫТИЕ" | E143: ФГ "ОТКРЫТИЕ" | F143: ФГ "ОТКРЫТИЕ" | G143: 115810 | H143: 115810
B144: АО "АЛЬФА-БАНК" | C144: АО "АЛЬФА-БАНК" | D144: АО "АЛЬФА-БАНК" | E144: АО "АЛЬФА-БАНК" | F144: АО "АЛЬФА-БАНК" | G144: 61646 | H144: 61646
B145: ООО "АТОН" | C145: ООО "АТОН" | D145: ООО "АТОН" | E145: ООО "АТОН" | F145: ООО "АТОН" | G145: 52140 | H145: 52140
B146: АЛОР БРОКЕР | C146: АЛОР БРОКЕР | D146: АЛОР БРОКЕР | E146: АЛОР БРОКЕР | F146: АЛОР БРОКЕР | G146: 34257 | H146: 34257
B147: КИТ Финанс (ПАО) | C147: КИТ Финанс (ПАО) | D147: КИТ Финанс (ПАО) | E147: КИТ Финанс (ПАО) | F147: КИТ Финанс (ПАО) | G147: 22810 | H147: 22810
B148: Банк ГПБ (АО) | C148: Банк ГПБ (АО) | D148: Банк ГПБ (АО) | E148: Банк ГПБ (АО) | F148: Банк ГПБ (АО) | G148: 21084 | H148: 21084
B151: Ведущие операторы рынка – число активных клиентов | H151: Таблица 2
B152: (по количеству уникальных клиентов, совершивших хотя бы одну сделку за месяц)
B153: Наименование Участника торгов | G153: Количество клиентов
B154: АО "ФИНАМ" | C154: АО "ФИНАМ" | D154: АО "ФИНАМ" | E154: АО "ФИНАМ" | F154: АО "ФИНАМ" | G154: 18769 | H154: 18769
B155: ФГ БКС | C155: ФГ БКС | D155: ФГ БКС | E155: ФГ БКС | F155: ФГ БКС | G155: 17009 | H155: 17009
B156: Сбербанк | C156: Сбербанк | D156: Сбербанк | E156: Сбербанк | F156: Сбербанк | G156: 14761 | H156: 14761
B157: ФГ "ОТКРЫТИЕ" | C157: ФГ "ОТКРЫТИЕ" | D157: ФГ "ОТКРЫТИЕ" | E157: ФГ "ОТКРЫТИЕ" | F157: ФГ "ОТКРЫТИЕ" | G157: 13232 | H157: 13232
B158: ВТБ 24 (ПАО) | C158: ВТБ 24 (ПАО) | D158: ВТБ 24 (ПАО) | E158: ВТБ 24 (ПАО) | F158: ВТБ 24 (ПАО) | G158: 12947 | H158: 12947
B159: ООО УК "Альфа-Капитал" | C159: ООО УК "Альфа-Капитал" | D159: ООО УК "Альфа-Капитал" | E159: ООО УК "Альфа-Капитал" | F159: ООО УК "Альфа-Капитал" | G159: 9186 | H159: 9186
B160: АО "АЛЬФА-БАНК" | C160: АО "АЛЬФА-БАНК" | D160: АО "АЛЬФА-БАНК" | E160: АО "АЛЬФА-БАНК" | F160: АО "АЛЬФА-БАНК" | G160: 4679 | H160: 4679
B161: ПАО "Промсвязьбанк" | C161: ПАО "Промсвязьбанк" | D161: ПАО "Промсвязьбанк" | E161: ПАО "Промсвязьбанк" | F161: ПАО "Промсвязьбанк" | G161: 3197 | H161: 3197
B162: ООО "АТОН" | C162: ООО "АТОН" | D162: ООО "АТОН" | E162: ООО "АТОН" | F162: ООО "АТОН" | G162: 2711 | H162: 2711
B163: Банк ГПБ (АО) | C163: Банк ГПБ (АО) | D163: Банк ГПБ (АО) | E163: Банк ГПБ (АО) | F163: Банк ГПБ (АО) | G163: 2550 | H163: 2550
B166: Ведущие операторы рынка – объем клиентских операций | H166: Таблица 3
B167: (по стоимостному объему сделок, заключенных в интересах клиентов за месяц)
B168: Наименование Участника торгов | G168: Торговый оборот, руб.
B169: ООО "БК РЕГИОН" | C169: ООО "БК РЕГИОН" | D169: ООО "БК РЕГИОН" | E169: ООО "БК РЕГИОН" | F169: ООО "БК РЕГИОН" | G169: 2.973848856e+12 | H169: 2.973848856e+12
B170: ФГ "ОТКРЫТИЕ" | C170: ФГ "ОТКРЫТИЕ" | D170: ФГ "ОТКРЫТИЕ" | E170: ФГ "ОТКРЫТИЕ" | F170: ФГ "ОТКРЫТИЕ" | G170: 2.508462122e+12 | H170: 2.508462122e+12
B171: ООО "УНИВЕР Капитал" | C171: ООО "УНИВЕР Капитал" | D171: ООО "УНИВЕР Капитал" | E171: ООО "УНИВЕР Капитал" | F171: ООО "УНИВЕР Капитал" | G171: 1.727543483e+12 | H171: 1.727543483e+12
B172: ФГ БКС | C172: ФГ БКС | D172: ФГ БКС | E172: ФГ БКС | F172: ФГ БКС | G172: 1.466849607e+12 | H172: 1.466849607e+12
B173: ООО "Ренессанс Брокер" | C173: ООО "Ренессанс Брокер" | D173: ООО "Ренессанс Брокер" | E173: ООО "Ренессанс Брокер" | F173: ООО "Ренессанс Брокер" | G173: 1.125715043e+12 | H173: 1.125715043e+12
B174: ПАО "Промсвязьбанк" | C174: ПАО "Промсвязьбанк" | D174: ПАО "Промсвязьбанк" | E174: ПАО "Промсвязьбанк" | F174: ПАО "Промсвязьбанк" | G174: 7.696703212e+11 | H174: 7.696703212e+11
B175: АО "ФИНАМ" | C175: АО "ФИНАМ" | D175: АО "ФИНАМ" | E175: АО "ФИНАМ" | F175: АО "ФИНАМ" | G175: 5.232104319e+11 | H175: 5.232104319e+11
B176: Сбербанк | C176: Сбербанк | D176: Сбербанк | E176: Сбербанк | F176: Сбербанк | G176: 5.046241549e+11 | H176: 5.046241549e+11
B177: ООО "ИК ВЕЛЕС Капитал" | C177: ООО "ИК ВЕЛЕС Капитал" | D177: ООО "ИК ВЕЛЕС Капитал" | E177: ООО "ИК ВЕЛЕС Капитал" | F177: ООО "ИК ВЕЛЕС Капитал" | G177: 4.053905473e+11 | H177: 4.053905473e+11
B178: ООО "РОНИН" | C178: ООО "РОНИН" | D178: ООО "РОНИН" | E178: ООО "РОНИН" | F178: ООО "РОНИН" | G178: 3.993455767e+11 | H178: 3.993455767e+11

Sheet November
B2: Клиенты Участников торгов фондового рынка Московской Биржи
B3: 2017-11-30
B6: Динамика количества клиентов за | C6: =B3 -> 2017-11-30
B10: Количество зарегистрированных клиентов в Системе торгов (по состоянию на последний день месяца): | H10: Таблица 1
B11: Группы клиентов | E11: =EDATE(B3,-1) -> 2017-10-30 | F11: =B3 -> 2017-11-30 | G11: Изменение (ед.) | H11: Изменение (%)
B12: Физические лица | E12: 1788146 | F12: 1803826 | G12: =F12-E12 -> 15680 | H12: =F12/E12-1 -> 0.008768858919
B13: Юридические лица | E13: 29007 | F13: 29541 | G13: =F13-E13 -> 534 | H13: 0.01840934947
B14: Иностранные лица | E14: 15601 | F14: 14946 | G14: -655 | H14: -0.04198448817
B15: Иностранные физические лица | E15: 7891 | F15: 7772 | G15: -119 | H15: -0.01508047142
B16: Иностранные юридические лица | E16: 7710 | F16: 7174 | G16: -536 | H16: -0.06952010376
B17: Клиенты, передавшие свои средства в ДУ | E17: 37053 | F17: 47822 | G17: 10769 | H17: 0.2906377351
B18: Всего | E18: 1869807 | F18: 1896135 | G18: 26328 | H18: 0.01408059762
B21: Количество уникальных клиентов в Системе торгов (по состоянию на последний день месяца): | H21: Таблица 2
B22: Группы клиентов | E22: =EDATE(B3,-1) -> 2017-10-30 | F22: =F11 -> 2017-11-30 | G22: Изменение (ед.) | H22: Изменение (%)
B23: Физические лица | E23: 1265256 | F23: 1284771 | G23: =F23-E23 -> 19515 | H23: =F23/E23-1 -> 0.01542375614
B24: Юридические лица | E24: 17992 | F24: 17818 | G24: =F24-E24 -> -174 | H24: =F24/E24-1 -> -0.009670964873
B25: Иностранные лица | E25: 10117 | F25: 10090 | G25: -27 | H25: -0.002668775329
B26: Иностранные физические лица | E26: 7006 | F26: 7068 | G26: 62 | H26: 0.008849557522
B27: Иностранные юридические лица | E27: 3111 | F27: 3022 | G27: -89 | H27: -0.02860816458
B28: Клиенты, передавшие свои средства в ДУ | E28: 20071 | F28: 20883 | G28: 812 | H28: 0.04045637985
B29: Всего | E29: 1313436 | F29: 1333562 | G29: 20126 | H29: 0.01532316763
B32: Количество активных клиентов в Системе торгов (совершивших в течение месяца хотя бы одну сделку): | H32: Таблица 3
B33: Группы клиентов | E33: =EDATE(B3,-1) -> 2017-10-30 | F33: =F11 -> 2017-11-30 | G33: Изменение (ед.) | H33: Изменение (%)
B34: Физические лица | E34: 98731 | F34: 107680 | G34: =F34-E34 -> 8949 | H34: =F34/E34-1 -> 0.09064022445
B35: Юридические лица | E35: 1112 | F35: 1084 | G35: -28 | H35: -0.02517985612
B36: Иностранные лица | E36: 753 | F36: 835 | G36: 82 | H36: 0.1088977424
B37: Иностранные физические лица | E37: 494 | F37: 570 | G37: 76 | H37: 0.1538461538
B38: Иностранные юридические лица | E38: 259 | F38: 265 | G38: 6 | H38: 0.02316602317
B39: Клиенты, передавшие свои средства в ДУ | E39: 9694 | F39: 6301 | G39: -3393 | H39: -0.3500103157
B40: Всего | E40: 110290 | F40: 115900 | G40: 5610 | H40: 0.05086589899
B44: Изменение количества уникальных клиентов - ретроспективные данные
B48: Количество уникальных клиентов в Системе торгов (по состоянию на последний день месяца) (ежегодная статистика): | H48: Таблица 1
B49: Группы клиентов | E49: 2012-12-31 | F49: 2013-12-31 | G49: 2014-12-31 | H49: 2015-12-31 | I49: 2016-12-31
B50: Физические лица | E50: 805549 | F50: 881844 | G50: 944559 | H50: 1006751 | I50: 1102966
B51: Юридические лица | E51: 17821 | F51: 19539 | G51: 20178 | H51: 20753 | I51: 18622
B52: Иностранные лица | E52: 5876 | F52: 6957 | G52: 7486 | H52: 8729 | I52: 9215
B53: Клиенты, передавшие свои средства в ДУ | E53: 5261 | F53: 5182 | G53: 5142 | H53: 3836 | I53: 10694
B54: Всего | E54: 834507 | F54: 913522 | G54: 977365 | H54: 1040069 | I54: 1141497
B82: Количество уникальных клиентов в Системе торгов (по состоянию на последний день месяца) (за последние 6 месяцев): | H82: Таблица 2
B83: Группы клиентов | C83: =EDATE(D83,-1) -> 2017-06-30 | D83: =EDATE(E83,-1) -> 2017-07-30 | E83: =EDATE(F83,-1) -> 2017-08-30 | F83: =EDATE(G83,-1) -> 2017-09-30 | G83: =EDATE(H83,-1) -> 2017-10-30 | H83: =EDATE(E11,1) -> 2017-11-30
B84: Физические лица | C84: 1194087 | D84: 1207926 | E84: 1224837 | F84: 1253028 | G84: 1265256 | H84: 1284771
B85: Юридические лица | C85: 18588 | D85: 18578 | E85: 18539 | F85: 18550 | G85: 17992 | H85: 17818
B86: Иностранные лица | C86: 9805 | D86: 9901 | E86: 10116 | F86: 10474 | G86: 10117 | H86: 10090
B87: Клиенты, передавшие свои средства в ДУ | C87: 15779 | D87: 16881 | E87: 18110 | F87: 18940 | G87: 20071 | H87: 20883
B88: Всего | C88: 1238259 | D88: 1253286 | E88: 1271602 | F88: 1300992 | G88: 1313436 | H88: 1333562
B124: Дополнительные показатели за | C124: =B3 -> 2017-11-30
H127: Таблица 1
B128: Участники торгов | G128: Абсолютные показатели
B129: Количество Участников торгов, имеющих активных клиентов | G129: 324
B133: Списки ведущих операторов фондового рынка - клиенты Участников торгов за | F133: =C6 -> 2017-11-30
B136: Ведущие операторы рынка – число зарегистрированных клиентов | H136: Таблица 1
B137: (по общему количеству уникальных клиентов всех типов, зарегистрированных в системе торгов биржи, в том числе в течение месяца)
B138: Наименование Участника торгов | G138: Количество клиентов
B139: ВТБ | C139: ВТБ | D139: ВТБ | E139: ВТБ | F139: ВТБ | G139: 274517 | H139: 274517
B140: ФГ БКС | C140: ФГ БКС | D140: ФГ БКС | E140: ФГ БКС | F140: ФГ БКС | G140: 260373 | H140: 260373
B141: Сбербанк | C141: Сбербанк | D141: Сбербанк | E141: Сбербанк | F141: Сбербанк | G141: 251644 | H141: 251644
B142: АО "ФИНАМ" | C142: АО "ФИНАМ" | D142: АО "ФИНАМ" | E142: АО "ФИНАМ" | F142: АО "ФИНАМ" | G142: 179726 | H142: 179726
B143: Группа Банка "ФК Открытие" | C143: Группа Банка "ФК Открытие" | D143: Группа Банка "ФК Открытие" | E143: Группа Банка "ФК Открытие" | F143: Группа Банка "ФК Открытие" | G143: 117279 | H143: 117279
B144: АО "АЛЬФА-БАНК" | C144: АО "АЛЬФА-БАНК" | D144: АО "АЛЬФА-БАНК" | E144: АО "АЛЬФА-БАНК" | F144: АО "АЛЬФА-БАНК" | G144: 62128 | H144: 62128
B145: ООО "АТОН" | C145: ООО "АТОН" | D145: ООО "АТОН" | E145: ООО "АТОН" | F145: ООО "АТОН" | G145: 52468 | H145: 52468
B146: АЛОР БРОКЕР | C146: АЛОР БРОКЕР | D146: АЛОР БРОКЕР | E146: АЛОР БРОКЕР | F146: АЛОР БРОКЕР | G146: 34343 | H146: 34343
B147: КИТ Финанс (ПАО) | C147: КИТ Финанс (ПАО) | D147: КИТ Финанс (ПАО) | E147: КИТ Финанс (ПАО) | F147: КИТ Финанс (ПАО) | G147: 22896 | H147: 22896
B148: Банк ГПБ (АО) | C148: Банк ГПБ (АО) | D148: Банк ГПБ (АО) | E148: Банк ГПБ (АО) | F148: Банк ГПБ (АО) | G148: 21390 | H148: 21390
B151: Ведущие операторы рынка – число активных клиентов | H151: Таблица 2
B152: (по количеству уникальных клиентов, совершивших хотя бы одну сделку за месяц)
B153: Наименование Участника торгов | G153: Количество клиентов
B154: АО "ФИНАМ" | C154: АО "ФИНАМ" | D154: АО "ФИНАМ" | E154: АО "ФИНАМ" | F154: АО "ФИНАМ" | G154: 19697 | H154: 19697
B155: ФГ БКС | C155: ФГ БКС | D155: ФГ БКС | E155: ФГ БКС | F155: ФГ БКС | G155: 18866 | H155: 18866
B156: Сбербанк | C156: Сбербанк | D156: Сбербанк | E156: Сбербанк | F156: Сбербанк | G156: 16705 | H156: 16705
B157: ВТБ | C157: ВТБ | D157: ВТБ | E157: ВТБ | F157: ВТБ | G157: 14997 | H157: 14997
B158: Группа Банка "ФК Открытие" | C158: Группа Банка "ФК Открытие" | D158: Группа Банка "ФК Открытие" | E158: Группа Банка "ФК Открытие" | F158: Группа Банка "ФК Открытие" | G158: 14207 | H158: 14207
B159: ООО УК "Альфа-Капитал" | C159: ООО УК "Альфа-Капитал" | D159: ООО УК "Альфа-Капитал" | E159: ООО УК "Альфа-Капитал" | F159: ООО УК "Альфа-Капитал" | G159: 5839 | H159: 5839
B160: АО "АЛЬФА-БАНК" | C160: АО "АЛЬФА-БАНК" | D160: АО "АЛЬФА-БАНК" | E160: АО "АЛЬФА-БАНК" | F160: АО "АЛЬФА-БАНК" | G160: 5018 | H160: 5018
B161: ПАО "Промсвязьбанк" | C161: ПАО "Промсвязьбанк" | D161: ПАО "Промсвязьбанк" | E161: ПАО "Промсвязьбанк" | F161: ПАО "Промсвязьбанк" | G161: 3481 | H161: 3481
B162: ООО "АТОН" | C162: ООО "АТОН" | D162: ООО "АТОН" | E162: ООО "АТОН" | F162: ООО "АТОН" | G162: 3054 | H162: 3054
B163: Банк ГПБ (АО) | C163: Банк ГПБ (АО) | D163: Банк ГПБ (АО) | E163: Банк ГПБ (АО) | F163: Банк ГПБ (АО) | G163: 2756 | H163: 2756
B166: Ведущие операторы рынка – объем клиентских операций | H166: Таблица 3
B167: (по стоимостному объему сделок, заключенных в интересах клиентов за месяц)
B168: Наименование Участника торгов | G168: Торговый оборот, руб.
B169: ООО "БК РЕГИОН" | C169: ООО "БК РЕГИОН" | D169: ООО "БК РЕГИОН" | E169: ООО "БК РЕГИОН" | F169: ООО "БК РЕГИОН" | G169: 2.860478294e+12 | H169: 2.860478294e+12
B170: Группа Банка "ФК Открытие" | C170: Группа Банка "ФК Открытие" | D170: Группа Банка "ФК Открытие" | E170: Группа Банка "ФК Открытие" | F170: Группа Банка "ФК Открытие" | G170: 2.341565128e+12 | H170: 2.341565128e+12
B171: ООО "УНИВЕР Капитал" | C171: ООО "УНИВЕР Капитал" | D171: ООО "УНИВЕР Капитал" | E171: ООО "УНИВЕР Капитал" | F171: ООО "УНИВЕР Капитал" | G171: 1.630985954e+12 | H171: 1.630985954e+12
B172: ФГ БКС | C172: ФГ БКС | D172: ФГ БКС | E172: ФГ БКС | F172: ФГ БКС | G172: 1.591075822e+12 | H172: 1.591075822e+12
B173: ООО "Ренессанс Брокер" | C173: ООО "Ренессанс Брокер" | D173: ООО "Ренессанс Брокер" | E173: ООО "Ренессанс Брокер" | F173: ООО "Ренессанс Брокер" | G173: 1.114918858e+12 | H173: 1.114918858e+12
B174: ПАО "Промсвязьбанк" | C174: ПАО "Промсвязьбанк" | D174: ПАО "Промсвязьбанк" | E174: ПАО "Промсвязьбанк" | F174: ПАО "Промсвязьбанк" | G174: 5.954548652e+11 | H174: 5.954548652e+11
B175: АО "ФИНАМ" | C175: АО "ФИНАМ" | D175: АО "ФИНАМ" | E175: АО "ФИНАМ" | F175: АО "ФИНАМ" | G175: 5.486980237e+11 | H175: 5.486980237e+11
B176: Сбербанк | C176: Сбербанк | D176: Сбербанк | E176: Сбербанк | F176: Сбербанк | G176: 4.29415302e+11 | H176: 4.29415302e+11
B177: АЛОР БРОКЕР | C177: АЛОР БРОКЕР | D177: АЛОР БРОКЕР | E177: АЛОР БРОКЕР | F177: АЛОР БРОКЕР | G177: 3.979886058e+11 | H177: 3.979886058e+11
B178: ООО "ИК ВЕЛЕС Капитал" | C178: ООО "ИК ВЕЛЕС Капитал" | D178: ООО "ИК ВЕЛЕС Капитал" | E178: ООО "ИК ВЕЛЕС Капитал" | F178: ООО "ИК ВЕЛЕС Капитал" | G178: 3.947662459e+11 | H178: 3.947662459e+11

Sheet December
B2: Клиенты Участников торгов фондового рынка Московской Биржи
B3: 2017-12-31
B6: Динамика количества клиентов за | C6: =B3 -> 2017-12-31
B10: Количество зарегистрированных клиентов в Системе торгов (по состоянию на последний день месяца): | H10: Таблица 1
B11: Группы клиентов | E11: =EDATE(B3,-1) -> 2017-11-30 | F11: =B3 -> 2017-12-31 | G11: Изменение (ед.) | H11: Изменение (%)
B12: Физические лица | E12: 1803826 | F12: 1893678 | G12: =F12-E12 -> 89852 | H12: =F12/E12-1 -> 0.04981189982
B13: Юридические лица | E13: 29541 | F13: 28217 | G13: =F13-E13 -> -1324 | H13: -0.04481906503
B14: Иностранные лица | E14: 14946 | F14: 15155 | G14: 209 | H14: 0.01398367456
B15: Иностранные физические лица | E15: 7772 | F15: 8025 | G15: 253 | H15: 0.03255275347
B16: Иностранные юридические лица | E16: 7174 | F16: 7130 | G16: -44 | H16: -0.006133258991
B17: Клиенты, передавшие свои средства в ДУ | E17: 47822 | F17: 36616 | G17: -11206 | H17: -0.2343272971
B18: Всего | E18: 1896135 | F18: 1973666 | G18: 77531 | H18: 0.04088896624
B21: Количество уникальных клиентов в Системе торгов (по состоянию на последний день месяца): | H21: Таблица 2
B22: Группы клиентов | E22: =EDATE(B3,-1) -> 2017-11-30 | F22: =F11 -> 2017-12-31 | G22: Изменение (ед.) | H22: Изменение (%)
B23: Физические лица | E23: 1284771 | F23: 1310296 | G23: =F23-E23 -> 25525 | H23: =F23/E23-1 -> 0.01986735379
B24: Юридические лица | E24: 17818 | F24: 17766 | G24: =F24-E24 -> -52 | H24: =F24/E24-1 -> -0.002918397127
B25: Иностранные лица | E25: 10090 | F25: 10211 | G25: 121 | H25: 0.01199207136
B26: Иностранные физические лица | E26: 7068 | F26: 7221 | G26: 153 | H26: 0.02164685908
B27: Иностранные юридические лица | E27: 3022 | F27: 2990 | G27: -32 | H27: -0.0105890139
B28: Клиенты, передавшие свои средства в ДУ | E28: 20883 | F28: 22564 | G28: 1681 | H28: 0.0804960973
B29: Всего | E29: 1333562 | F29: 1360837 | G29: 27275 | H29: 0.02045274235
B32: Количество активных клиентов в Системе торгов (совершивших в течение месяца хотя бы одну сделку): | H32: Таблица 3
B33: Группы клиентов | E33: =EDATE(B3,-1) -> 2017-11-30 | F33: =F11 -> 2017-12-31 | G33: Изменение (ед.) | H33: Изменение (%)
B34: Физические лица | E34: 107680 | F34: 109538 | G34: =F34-E34 -> 1858 | H34: =F34/E34-1 -> 0.01725482912
B35: Юридические лица | E35: 1084 | F35: 1159 | G35: 75 | H35: 0.06918819188
B36: Иностранные лица | E36: 835 | F36: 807 | G36: -28 | H36: -0.03353293413
B37: Иностранные физические лица | E37: 570 | F37: 543 | G37: -27 | H37: -0.04736842105
B38: Иностранные юридические лица | E38: 265 | F38: 264 | G38: -1 | H38: -0.003773584906
B39: Клиенты, передавшие свои средства в ДУ | E39: 6301 | F39: 8096 | G39: 1795 | H39: 0.2848754166
B40: Всего | E40: 115900 | F40: 119600 | G40: 3700 | H40: 0.03192407248
B44: Изменение количества уникальных клиентов - ретроспективные данные
B48: Количество уникальных клиентов в Системе торгов (по состоянию на последний день месяца) (ежегодная статистика): | H48: Таблица 1
B49: Группы клиентов | E49: 2013-12-31 | F49: =EDATE(E49,12) -> 2014-12-31 | G49: =EDATE(F49,12) -> 2015-12-31 | H49: 2016-12-31 | I49: 2017-12-31
B50: Физические лица | E50: 881844 | F50: 944559 | G50: 1006751 | H50: 1102966 | I50: 1310296
B51: Юридические лица | E51: 19539 | F51: 20178 | G51: 20753 | H51: 18622 | I51: 17766
B52: Иностранные лица | E52: 6957 | F52: 7486 | G52: 8729 | H52: 9215 | I52: 10211
B53: Клиенты, передавшие свои средства в ДУ | E53: 5182 | F53: 5142 | G53: 3836 | H53: 10694 | I53: 22564
B54: Всего | E54: 913522 | F54: 977365 | G54: 1040069 | H54: 1141497 | I54: 1360837
B82: Количество уникальных клиентов в Системе торгов (по состоянию на последний день месяца) (за последние 6 месяцев): | H82: Таблица 2
B83: Группы клиентов | C83: =EDATE(D83,-1) -> 2017-07-30 | D83: =EDATE(E83,-1) -> 2017-08-30 | E83: =EDATE(F83,-1) -> 2017-09-30 | F83: =EDATE(G83,-1) -> 2017-10-30 | G83: =EDATE(H83,-1) -> 2017-11-30 | H83: =EDATE(E11,1) -> 2017-12-30
B84: Физические лица | C84: 1207926 | D84: 1224837 | E84: 1253028 | F84: 1265256 | G84: 1284771 | H84: 1310296
B85: Юридические лица | C85: 18578 | D85: 18539 | E85: 18550 | F85: 17992 | G85: 17818 | H85: 17766
B86: Иностранные лица | C86: 9901 | D86: 10116 | E86: 10474 | F86: 10117 | G86: 10090 | H86: 10211
B87: Клиенты, передавшие свои средства в ДУ | C87: 16881 | D87: 18110 | E87: 18940 | F87: 20071 | G87: 20883 | H87: 22564
B88: Всего | C88: 1253286 | D88: 1271602 | E88: 1300992 | F88: 1313436 | G88: 1333562 | H88: 1360837
B124: Дополнительные показатели за | C124: =B3 -> 2017-12-31
H127: Таблица 1
B128: Участники торгов | G128: Абсолютные показатели
B129: Количество Участников торгов, имеющих активных клиентов | G129: 322
B133: Списки ведущих операторов фондового рынка - клиенты Участников торгов за | F133: =C6 -> 2017-12-31
B136: Ведущие операторы рынка – число зарегистрированных клиентов | H136: Таблица 1
B137: (по общему количеству уникальных клиентов всех типов, зарегистрированных в системе торгов биржи, в том числе в течение месяца)
B138: Наименование Участника торгов | G138: Количество клиентов
B139: ВТБ | C139: ВТБ | D139: ВТБ | E139: ВТБ | F139: ВТБ | G139: 273416 | H139: 273416
B140: ФГ БКС | C140: ФГ БКС | D140: ФГ БКС | E140: ФГ БКС | F140: ФГ БКС | G140: 268341 | H140: 268341
B141: Сбербанк | C141: Сбербанк | D141: Сбербанк | E141: Сбербанк | F141: Сбербанк | G141: 259882 | H141: 259882
B142: АО "ФИНАМ" | C142: АО "ФИНАМ" | D142: АО "ФИНАМ" | E142: АО "ФИНАМ" | F142: АО "ФИНАМ" | G142: 182492 | H142: 182492
B143: Группа Банка "ФК Открытие" | C143: Группа Банка "ФК Открытие" | D143: Группа Банка "ФК Открытие" | E143: Группа Банка "ФК Открытие" | F143: Группа Банка "ФК Открытие" | G143: 119560 | H143: 119560
B144: АО "АЛЬФА-БАНК" | C144: АО "АЛЬФА-БАНК" | D144: АО "АЛЬФА-БАНК" | E144: АО "АЛЬФА-БАНК" | F144: АО "АЛЬФА-БАНК" | G144: 62804 | H144: 62804
B145: ООО "АТОН" | C145: ООО "АТОН" | D145: ООО "АТОН" | E145: ООО "АТОН" | F145: ООО "АТОН" | G145: 52880 | H145: 52880
B146: АЛОР БРОКЕР | C146: АЛОР БРОКЕР | D146: АЛОР БРОКЕР | E146: АЛОР БРОКЕР | F146: АЛОР БРОКЕР | G146: 34646 | H146: 34646
B147: КИТ Финанс (ПАО) | C147: КИТ Финанс (ПАО) | D147: КИТ Финанс (ПАО) | E147: КИТ Финанс (ПАО) | F147: КИТ Финанс (ПАО) | G147: 22998 | H147: 22998
B148: Банк ГПБ (АО) | C148: Банк ГПБ (АО) | D148: Банк ГПБ (АО) | E148: Банк ГПБ (АО) | F148: Банк ГПБ (АО) | G148: 21829 | H148: 21829
B151: Ведущие операторы рынка – число активных клиентов | H151: Таблица 2
B152: (по количеству уникальных клиентов, совершивших хотя бы одну сделку за месяц)
B153: Наименование Участника торгов | G153: Количество клиентов
B154: АО "ФИНАМ" | C154: АО "ФИНАМ" | D154: АО "ФИНАМ" | E154: АО "ФИНАМ" | F154: АО "ФИНАМ" | G154: 19649 | H154: 19649
B155: ФГ БКС | C155: ФГ БКС | D155: ФГ БКС | E155: ФГ БКС | F155: ФГ БКС | G155: 18985 | H155: 18985
B156: Сбербанк | C156: Сбербанк | D156: Сбербанк | E156: Сбербанк | F156: Сбербанк | G156: 17061 | H156: 17061
B157: Группа Банка "ФК Открытие" | C157: Группа Банка "ФК Открытие" | D157: Группа Банка "ФК Открытие" | E157: Группа Банка "ФК Открытие" | F157: Группа Банка "ФК Открытие" | G157: 14831 | H157: 14831
B158: ВТБ | C158: ВТБ | D158: ВТБ | E158: ВТБ | F158: ВТБ | G158: 13469 | H158: 13469
B159: ООО УК "Альфа-Капитал" | C159: ООО УК "Альфа-Капитал" | D159: ООО УК "Альфа-Капитал" | E159: ООО УК "Альфа-Капитал" | F159: ООО УК "Альфа-Капитал" | G159: 7438 | H159: 7438
B160: АО "АЛЬФА-БАНК" | C160: АО "АЛЬФА-БАНК" | D160: АО "АЛЬФА-БАНК" | E160: АО "АЛЬФА-БАНК" | F160: АО "АЛЬФА-БАНК" | G160: 4988 | H160: 4988
B161: ПАО "Промсвязьбанк" | C161: ПАО "Промсвязьбанк" | D161: ПАО "Промсвязьбанк" | E161: ПАО "Промсвязьбанк" | F161: ПАО "Промсвязьбанк" | G161: 3596 | H161: 3596
B162: Банк ГПБ (АО) | C162: Банк ГПБ (АО) | D162: Банк ГПБ (АО) | E162: Банк ГПБ (АО) | F162: Банк ГПБ (АО) | G162: 3038 | H162: 3038
B163: ООО "АТОН" | C163: ООО "АТОН" | D163: ООО "АТОН" | E163: ООО "АТОН" | F163: ООО "АТОН" | G163: 2820 | H163: 2820
B166: Ведущие операторы рынка – объем клиентских операций | H166: Таблица 3
B167: (по стоимостному объему сделок, заключенных в интересах клиентов за месяц)
B168: Наименование Участника торгов | G168: Торговый оборот, руб.
B169: ООО "БК РЕГИОН" | C169: ООО "БК РЕГИОН" | D169: ООО "БК РЕГИОН" | E169: ООО "БК РЕГИОН" | F169: ООО "БК РЕГИОН" | G169: 2.633334557e+12 | H169: 2.633334557e+12
B170: Группа Банка "ФК Открытие" | C170: Группа Банка "ФК Открытие" | D170: Группа Банка "ФК Открытие" | E170: Группа Банка "ФК Открытие" | F170: Группа Банка "ФК Открытие" | G170: 2.291079538e+12 | H170: 2.291079538e+12
B171: ООО "УНИВЕР Капитал" | C171: ООО "УНИВЕР Капитал" | D171: ООО "УНИВЕР Капитал" | E171: ООО "УНИВЕР Капитал" | F171: ООО "УНИВЕР Капитал" | G171: 1.459902469e+12 | H171: 1.459902469e+12
B172: ФГ БКС | C172: ФГ БКС | D172: ФГ БКС | E172: ФГ БКС | F172: ФГ БКС | G172: 1.35109292e+12 | H172: 1.35109292e+12
B173: ООО "Ренессанс Брокер" | C173: ООО "Ренессанс Брокер" | D173: ООО "Ренессанс Брокер" | E173: ООО "Ренессанс Брокер" | F173: ООО "Ренессанс Брокер" | G173: 8.926057608e+11 | H173: 8.926057608e+11
B174: Сбербанк | C174: Сбербанк | D174: Сбербанк | E174: Сбербанк | F174: Сбербанк | G174: 8.316798212e+11 | H174: 8.316798212e+11
B175: АЛОР БРОКЕР | C175: АЛОР БРОКЕР | D175: АЛОР БРОКЕР | E175: АЛОР БРОКЕР | F175: АЛОР БРОКЕР | G175: 5.445655488e+11 | H175: 5.445655488e+11
B176: АО "ФИНАМ" | C176: АО "ФИНАМ" | D176: АО "ФИНАМ" | E176: АО "ФИНАМ" | F176: АО "ФИНАМ" | G176: 5.267292988e+11 | H176: 5.267292988e+11
B177: ПАО "Совкомбанк" | C177: ПАО "Совкомбанк" | D177: ПАО "Совкомбанк" | E177: ПАО "Совкомбанк" | F177: ПАО "Совкомбанк" | G177: 4.185100219e+11 | H177: 4.185100219e+11
B178: ПАО КБ "УБРиР" | C178: ПАО КБ "УБРиР" | D178: ПАО КБ "УБРиР" | E178: ПАО КБ "УБРиР" | F178: ПАО КБ "УБРиР" | G178: 4.077103958e+11 | H178: 4.077103958e+11
